Workbook

Sheet Cover
A1: =RIGHT(CELL("filename", $B$1), LEN(CELL("filename", $B$1)) - SEARCH("]", CELL("filename", $B$1))) -> Cover
B3: Workbook title: | C3: PR19 Innovation Funding reconciliation model
B4: Version: | C4: 2b
B5: Filename: | C5: PR19-Innovation-funding-reconciliation-model-Dec-2020-v2b.xlsm
B6: Date: | C6: 2020-12-02
B7: Author: | C7: Ofwat
B8: Author contact information: | C8: OfwatPandO@ofwat.gov.uk
B11: Summary of workbook: | C11: The model is a whole of industry model with inputs and outputs for all companies housed within one model.
C12: The model calculates the total amount of unused funds to be redistributed to individual companies’ customers.
C13: This is done in line with the original allocation methodology set out in PR19 Final Determinations.
C14: Inputs and calculations are in outturn prices before being converted into real terms 2017-18 CPIH FYA. A time value of
C15: money adjustment is also made discounted to 2024-25 prices.
B17: Known limitations: | C17: n/a
B19: Instructions: | C19: Inputs are added at industry level on InpOverride.
C20: Calculations are completed on the sheet 'Innovation funding return' to calculated any unused and uncommitted funding.
C21: Unused funding is redistributed as per the original proportions .
B23: Changes | C23: Below are details of changes to the model from the previously published version (version 1e 27/02/2020).
C24: The changes fix issues that have been identified and implement improvements for clarity and ease of use.
C26: Category | D26: Sheet(s) in current model | E26: Description of change(s) made | F26: Model link(s)
C27: Refinement | D27: Innovation funding return | E27: The formula for the proportion of innovation funding has been amended to remove the #REF error within it. | F27: ='Innovation funding return'!F72 -> 0.1049339209
C28: Logic Update | D28: InpActive, Innovation funding return | E28: The inputs for innovation funding return have been amended from outturn prices to be in real prices (2017-18 CPIH FYA) in order to align funding to the allowances in the PR19 final determinations. These are coverted into nominal prices in the model. | F28: =InpActive!E28 -> ANH - Allocated innovation funding - Real
F29: ='Innovation funding return'!$E$31 -> ANH - Allocated innovation funding - Nominal
C30: Logic Update | D30: Innovation funding return | E30: Check has been amended to check if funding over the AMP is negative rather than in a single year. This applies to all companies and industry | F30: ='Innovation funding return'!E297 -> Negative funding check
C31: Logic Update | D31: Innovation funding return | E31: The calculation of total unused funding has been amended to be total allocated funding less total funding transferred. | F31: ='Innovation funding return'!E219 -> Total Transferred - Nominal
C32: Refinement | D32: InpActive, Innovation funding return | E32: Additional lines have been added to the model for awarded funding and expenditure for NAV bids | F32: ='Innovation funding return'!$E$130 -> NAV - Bids Accepted & Funding Awarded - Nominal
F33: ='Innovation funding return'!$E$153 -> NAV - Expenditure on innovation spend to date - Nominal
F34: ='Innovation funding return'!$E$214 -> NAV - Allowed Future expenditure on innovation projects - Nominal
C35: Refinement | D35: InpActive, Innovation funding return | E35: Additional inputs included for adminstrative costs of the innovation fund | F35: =InpActive!E112 -> ANH - Administrative charge for innovation fund - Nominal
F36: ='Innovation funding return'!E176 -> ANH - Total spend to date - Nominal
C37: Refinement | D37: InpActive | E37: Check added to the model to ensure funding awarded is the same as funding transferred | F37: =InpActive!E89 -> Total awarded check
B39: References: | C39: APR Table 9a
B41: Error Checks: | C41: =Check!B$8 -> 0
B45: END OF SHEET

Sheet Documentation -->

Sheet Style Guide
A1: =RIGHT(CELL("filename", $A$1), LEN(CELL("filename", $A$1)) - SEARCH("]", CELL("filename", $A$1))) -> Style Guide
A3: SHEET TABS
H5: Light Yellow | J5: Input sheets
H7: No colour (default Excel tab colour) | J7: Calculation and documentation sheets
H9: Pale Blue | J9: Key output sheets
H11: Turquoise | J11: Quality control sheets
H13: Yellow | J13: To be completed, temporary, restructured, or deleted
A16: COLOUR
B18: Font colour only
H19: Blue font | J19: Imported from another sheet
H21: Red font | J21: Exported to another sheet (except from Input sheets)
H23: Black font | J23: Within sheet link or calculation
B25: Font + shade combinations
H26: Black font + Light Yellow shade | J26: Inputs
H28: Black font + Light Yellow shade with grey stripe | J28: Inputs that are not expected to be changed
H30: Black font + Light Grey shade on entire row | J30: Within-worksheet counter-flow
H32: Blue font + Light Grey shade on entire row | J32: Between-worksheet counter-flow
H34: Empty Cell with Light Grey shade | J34: Empty cells being deliberately referenced
B36: Other
H37: Black font + Pale Blue shade on entire row | J37: Section separator
H39: Light Turquoise shade | J39: Stored/dead/hard coded outputs
H41: Tan shade | J41: Pre-model time line actuals
H43: Yellow shade | J43: Work in progress / temporary
H45: Lime shade | J45: Values or logic to be reviewed
B47: Error checks
H48: Green shade | J48: OK
H50: Red shade | J50: Error
A52: End of sheet

Sheet ToC
A1: =RIGHT(CELL("filename", $A$1), LEN(CELL("filename", $A$1)) - SEARCH("]", CELL("filename", $A$1))) -> ToC
B3: ASSUMPTIONS | D3: INPUTS | F3: CALCULATIONS | H3: OUTPUTS | J3: Quality Control
B5: =Cover!B1 -> 0 | D5: =InpActive!A1 -> InpActive | F5: =Indexation!A1 -> Indexation | H5: =Outputs!A1 -> Outputs | J5: =Check!A1 -> Check
B6: Model documentation sheet | D6: Inputs sheet | F6: All the indexation related calculations are done in this sheet. | H6: Main ouput sheet showing total to be redistributed | J6: Contains all the model integrity checks and alerts
B8: Style Guide | F8: =Time!A1 -> Time
B9: Explanation of different formatting types | F9: The model timeline and flag calculations are done in this sheet.
B11: =$A$1 -> ToC | F11: ='Innovation funding return'!A1 -> Innovation funding return
B12: Table of contents | F12: Calculated the total unused funding to be restributed
A18: End of sheet

Sheet Inputs-->

Sheet InpActive
A1: =RIGHT(CELL("filename", $A$1), LEN(CELL("filename", $A$1)) - SEARCH("]", CELL("filename", $A$1))) -> InpActive
E2: =Time!E$22 -> Model Period BEG | J2: =Time!J$22 -> 2019-04-01 | K2: =Time!K$22 -> 2020-04-01 | L2: =Time!L$22 -> 2021-04-01 | M2: =Time!M$22 -> 2022-04-01 | N2: =Time!N$22 -> 2023-04-01 | O2: =Time!O$22 -> 2024-04-01 | P2: =Time!P$22 -> 2025-04-01
E3: =Time!E$23 -> Model Period END | F3: =Check!F$8 -> 0 | G3: Error chks | J3: =Time!J$23 -> 2020-03-31 | K3: =Time!K$23 -> 2021-03-31 | L3: =Time!L$23 -> 2022-03-31 | M3: =Time!M$23 -> 2023-03-31 | N3: =Time!N$23 -> 2024-03-31 | O3: =Time!O$23 -> 2025-03-31 | P3: =Time!P$23 -> 2026-03-31
E4: =Time!E$59 -> Pre Forecast vs Forecast | J4: =Time!J$59 -> Pre Fcst | K4: =Time!K$59 -> Forecast | L4: =Time!L$59 -> Forecast | M4: =Time!M$59 -> Forecast | N4: =Time!N$59 -> Forecast | O4: =Time!O$59 -> Forecast | P4: =Time!P$59 -> Post-Fcst
E5: =Time!E$101 -> Financial Year Ending | J5: =Time!J$101 -> 2020 | K5: =Time!K$101 -> 2021 | L5: =Time!L$101 -> 2022 | M5: =Time!M$101 -> 2023 | N5: =Time!N$101 -> 2024 | O5: =Time!O$101 -> 2025 | P5: =Time!P$101 -> 2026
E6: =Time!E$11 -> Model column counter | F6: Constant | G6: Unit | H6: Total | J6: =Time!J$11 -> 1 | K6: =Time!K$11 -> 2 | L6: =Time!L$11 -> 3 | M6: =Time!M$11 -> 4 | N6: =Time!N$11 -> 5 | O6: =Time!O$11 -> 6 | P6: =Time!P$11 -> 7
A8: TIME
E10: First date of time ruler | F10: 2019-04-01 | G10: date
E12: Last Pre Forecast Date | F12: 2020-03-31 | G12: date
E14: Acquisition date (midnight) | F14: 2020-03-31 | G14: date
E15: Length of forecast period | F15: 5 | G15: years
E16: Last forecast date | F16: =DATE(YEAR(F14)+F15,MONTH(F14),DAY(F14)) -> 2025-03-31 | G16: date
E19: Operation Start Date (midnight) | F19: 2021-03-31 | G19: date
E20: Operation Finish Date (midnight) | F20: 2025-03-31 | G20: date
E21: First Modelling Column Financial Year Number | F21: 2020 | G21: year
E22: Financial Year End Month Number | F22: 3 | G22: month #
A25: INNOVATION FUNDING INPUTS
D27: Allocated innovation competition fund price control revenue
E28: ANH - Allocated innovation funding - Real | G28: £m | H28: =SUM(K28:O28) -> 20.98678418 | K28: 4.197356835 | L28: 4.197356835 | M28: 4.197356835 | N28: 4.197356835 | O28: 4.197356835
E29: HDD - Allocated innovation funding - Real | G29: £m | H29: =SUM(K29:O29) -> 0.454895641 | K29: 0.0909791282 | L29: 0.0909791282 | M29: 0.0909791282 | N29: 0.0909791282 | O29: 0.0909791282
E30: NES - Allocated innovation funding - Real | G30: £m | H30: 11.785105 | K30: 2.357021001 | L30: 2.357021001 | M30: 2.357021001 | N30: 2.357021001 | O30: 2.357021001
E31: NWT - Allocated innovation funding - Real | G31: £m | H31: 29.37006115 | K31: 5.874012231 | L31: 5.874012231 | M31: 5.874012231 | N31: 5.874012231 | O31: 5.874012231
E32: SRN - Allocated innovation funding - Real | G32: £m | H32: 13.29778674 | K32: 2.659557348 | L32: 2.659557348 | M32: 2.659557348 | N32: 2.659557348 | O32: 2.659557348
E33: SVE - Allocated innovation funding - Real | G33: £m | H33: 28.3821074 | K33: 5.676421481 | L33: 5.676421481 | M33: 5.676421481 | N33: 5.676421481 | O33: 5.676421481
E34: SWB - Allocated innovation funding - Real | G34: £m | H34: 8.82064115 | K34: 1.76412823 | L34: 1.76412823 | M34: 1.76412823 | N34: 1.76412823 | O34: 1.76412823
E35: TMS - Allocated innovation funding - Real | G35: £m | H35: 34.32930907 | K35: 6.865861815 | L35: 6.865861815 | M35: 6.865861815 | N35: 6.865861815 | O35: 6.865861815
E36: WSH - Allocated innovation funding - Real | G36: £m | H36: 12.35773469 | K36: 2.471546938 | L36: 2.471546938 | M36: 2.471546938 | N36: 2.471546938 | O36: 2.471546938
E37: WSX - Allocated innovation funding - Real | G37: £m | H37: 8.260459208 | K37: 1.652091842 | L37: 1.652091842 | M37: 1.652091842 | N37: 1.652091842 | O37: 1.652091842
E38: YKY - Allocated innovation funding - Real | G38: £m | H38: 17.59261306 | K38: 3.518522611 | L38: 3.518522611 | M38: 3.518522611 | N38: 3.518522611 | O38: 3.518522611
E39: AFW - Allocated innovation funding - Real | G39: £m | H39: 4.843234773 | K39: 0.9686469547 | L39: 0.9686469547 | M39: 0.9686469547 | N39: 0.9686469547 | O39: 0.9686469547
E40: BRL - Allocated innovation funding - Real | G40: £m | H40: 1.891226929 | K40: 0.3782453859 | L40: 0.3782453859 | M40: 0.3782453859 | N40: 0.3782453859 | O40: 0.3782453859
E41: PRT - Allocated innovation funding - Real | G41: £m | H41: 0.6495123432 | K41: 0.1299024686 | L41: 0.1299024686 | M41: 0.1299024686 | N41: 0.1299024686 | O41: 0.1299024686
E42: SES - Allocated innovation funding - Real | G42: £m | H42: 0.9840540389 | K42: 0.1968108078 | L42: 0.1968108078 | M42: 0.1968108078 | N42: 0.1968108078 | O42: 0.1968108078
E43: SEW - Allocated innovation funding - Real | G43: £m | H43: 3.951513618 | K43: 0.7903027237 | L43: 0.7903027237 | M43: 0.7903027237 | N43: 0.7903027237 | O43: 0.7903027237
E44: SSC - Allocated innovation funding - Real | G44: £m | H44: 2.042960997 | K44: 0.4085921993 | L44: 0.4085921993 | M44: 0.4085921993 | N44: 0.4085921993 | O44: 0.4085921993
D46: Total Funding transferred to winning bids
E47: ANH - Total Funding transferred to winning bids - Nominal | G47: £m | H47: =SUM(K47:O47) -> 0
E48: HDD - Total Funding transferred to winning bids - Nominal | G48: £m | H48: =SUM(K48:O48) -> 0
E49: NES - Total Funding transferred to winning bids - Nominal | G49: £m | H49: 0
E50: NWT - Total Funding transferred to winning bids - Nominal | G50: £m | H50: 0
E51: SRN - Total Funding transferred to winning bids - Nominal | G51: £m | H51: 0
E52: SVE - Total Funding transferred to winning bids - Nominal | G52: £m | H52: 0
E53: SWB - Total Funding transferred to winning bids - Nominal | G53: £m | H53: 0
E54: TMS - Total Funding transferred to winning bids - Nominal | G54: £m | H54: 0
E55: WSH - Total Funding transferred to winning bids - Nominal | G55: £m | H55: 0
E56: WSX - Total Funding transferred to winning bids - Nominal | G56: £m | H56: 0
E57: YKY - Total Funding transferred to winning bids - Nominal | G57: £m | H57: 0
E58: AFW - Total Funding transferred to winning bids - Nominal | G58: £m | H58: 0
E59: BRL - Total Funding transferred to winning bids - Nominal | G59: £m | H59: 0
E60: PRT - Total Funding transferred to winning bids - Nominal | G60: £m | H60: 0 | K60: 0 | L60: 0 | M60: 0 | N60: 0 | O60: 0
E61: SES - Total Funding transferred to winning bids - Nominal | G61: £m | H61: 0
E62: SEW - Total Funding transferred to winning bids - Nominal | G62: £m | H62: 0
E63: SSC - Total Funding transferred to winning bids - Nominal | G63: £m | H63: 0
E64: Total Funding transferred to winning bids - Nominal | F64: =SUM(H47:H63) -> 0 | G64: £m
D66: Bids accepted and awarded funding for innovation competition
E67: ANH - Bids Accepted & Funding Awarded - Nominal | G67: £m | H67: =SUM(K67:O67) -> 0
E68: HDD - Bids Accepted & Funding Awarded - Nominal | G68: £m | H68: =SUM(K68:O68) -> 0
E69: NES - Bids Accepted & Funding Awarded - Nominal | G69: £m | H69: 0
E70: NWT - Bids Accepted & Funding Awarded - Nominal | G70: £m | H70: 0
E71: SRN - Bids Accepted & Funding Awarded - Nominal | G71: £m | H71: 0
E72: SVE - Bids Accepted & Funding Awarded - Nominal | G72: £m | H72: 0
E73: SWB - Bids Accepted & Funding Awarded - Nominal | G73: £m | H73: 0
E74: TMS - Bids Accepted & Funding Awarded - Nominal | G74: £m | H74: 0
E75: WSH - Bids Accepted & Funding Awarded - Nominal | G75: £m | H75: 0
E76: WSX - Bids Accepted & Funding Awarded - Nominal | G76: £m | H76: 0
E77: YKY - Bids Accepted & Funding Awarded - Nominal | G77: £m | H77: 0
E78: AFW - Bids Accepted & Funding Awarded - Nominal | G78: £m | H78: 0
E79: BRL - Bids Accepted & Funding Awarded - Nominal | G79: £m | H79: 0
E80: PRT - Bids Accepted & Funding Awarded - Nominal | G80: £m | H80: 0 | K80: 0 | L80: 0 | M80: 0 | N80: 0 | O80: 0
E81: SES - Bids Accepted & Funding Awarded - Nominal | G81: £m | H81: 0
E82: SEW - Bids Accepted & Funding Awarded - Nominal | G82: £m | H82: 0
E83: SSC - Bids Accepted & Funding Awarded - Nominal | G83: £m | H83: 0
E84: NAV - Bids Accepted & Funding Awarded - Nominal | G84: £m | H84: 0
E85: Total Bids Accepted & Funding Awarded - Nominal | F85: =SUM(H68:H84) -> 0 | G85: £m
E87: =E$64 -> Total Funding transferred to winning bids - Nominal | F87: =F$64 -> 0 | G87: £m
E88: =E$85 -> Total Bids Accepted & Funding Awarded - Nominal | F88: =F$85 -> 0 | G88: £m
E89: Total awarded check | F89: =IF(F87 = F88, 0, 1) -> 0 | G89: check
D91: Expenditure on innovation projects (exc. innovation activities funded through totex) to date
E92: ANH - Expenditure on innovation spend to date - Nominal | G92: £m | H92: =SUM(K92:O92) -> 0
E93: HDD - Expenditure on innovation spend to date - Nominal | G93: £m | H93: =SUM(K93:O93) -> 0
E94: NES - Expenditure on innovation spend to date - Nominal | G94: £m | H94: 0
E95: NWT - Expenditure on innovation spend to date - Nominal | G95: £m | H95: 0
E96: SRN - Expenditure on innovation spend to date - Nominal | G96: £m | H96: 0
E97: SVE - Expenditure on innovation spend to date - Nominal | G97: £m | H97: 0
E98: SWB - Expenditure on innovation spend to date - Nominal | G98: £m | H98: 0
E99: TMS - Expenditure on innovation spend to date - Nominal | G99: £m | H99: 0
E100: WSH - Expenditure on innovation spend to date - Nominal | G100: £m | H100: 0
E101: WSX - Expenditure on innovation spend to date - Nominal | G101: £m | H101: 0
E102: YKY - Expenditure on innovation spend to date - Nominal | G102: £m | H102: 0
E103: AFW - Expenditure on innovation spend to date - Nominal | G103: £m | H103: 0
E104: BRL - Expenditure on innovation spend to date - Nominal | G104: £m | H104: 0
E105: PRT - Expenditure on innovation spend to date - Nominal | G105: £m | H105: 0 | K105: 0 | L105: 0 | M105: 0 | N105: 0 | O105: 0
E106: SES - Expenditure on innovation spend to date - Nominal | G106: £m | H106: 0
E107: SEW - Expenditure on innovation spend to date - Nominal | G107: £m | H107: 0
E108: SSC - Expenditure on innovation spend to date - Nominal | G108: £m | H108: 0
E109: NAV - Expenditure on innovation spend to date - Nominal | G109: £m | H109: 0
D111: Administrative charge for innovation fund
E112: ANH - Administrative charge for innovation fund - Nominal | G112: £m | H112: =SUM(K112:O112) -> 0
E113: HDD - Administrative charge for innovation fund - Nominal | G113: £m | H113: =SUM(K113:O113) -> 0
E114: NES - Administrative charge for innovation fund - Nominal | G114: £m | H114: 0
E115: NWT - Administrative charge for innovation fund - Nominal | G115: £m | H115: 0
E116: SRN - Administrative charge for innovation fund - Nominal | G116: £m | H116: 0
E117: SVE - Administrative charge for innovation fund - Nominal | G117: £m | H117: 0
E118: SWB - Administrative charge for innovation fund - Nominal | G118: £m | H118: 0
E119: TMS - Administrative charge for innovation fund - Nominal | G119: £m | H119: 0
E120: WSH - Administrative charge for innovation fund - Nominal | G120: £m | H120: 0
E121: WSX - Administrative charge for innovation fund - Nominal | G121: £m | H121: 0
E122: YKY - Administrative charge for innovation fund - Nominal | G122: £m | H122: 0
E123: AFW - Administrative charge for innovation fund - Nominal | G123: £m | H123: 0
E124: BRL - Administrative charge for innovation fund - Nominal | G124: £m | H124: 0
E125: PRT - Administrative charge for innovation fund - Nominal | G125: £m | H125: =SUM(K125:O125) -> 0 | K125: 0 | L125: 0 | M125: 0 | N125: 0 | O125: 0
E126: SES - Administrative charge for innovation fund - Nominal | G126: £m | H126: 0
E127: SEW - Administrative charge for innovation fund - Nominal | G127: £m | H127: 0
E128: SSC - Administrative charge for innovation fund - Nominal | G128: £m | H128: 0
D130: Allowed future expenditure on innovation projects
E131: ANH - Allowed Future expenditure on innovation projects - Nominal | G131: £m | H131: =SUM(K131:O131) -> 0
E132: HDD - Allowed Future expenditure on innovation projects - Nominal | G132: £m | H132: =SUM(K132:O132) -> 0
E133: NES - Allowed Future expenditure on innovation projects - Nominal | G133: £m | H133: 0
E134: NWT - Allowed Future expenditure on innovation projects - Nominal | G134: £m | H134: 0
E135: SRN - Allowed Future expenditure on innovation projects - Nominal | G135: £m | H135: 0
E136: SVE - Allowed Future expenditure on innovation projects - Nominal | G136: £m | H136: 0
E137: SWB - Allowed Future expenditure on innovation projects - Nominal | G137: £m | H137: 0
E138: TMS - Allowed Future expenditure on innovation projects - Nominal | G138: £m | H138: 0
E139: WSH - Allowed Future expenditure on innovation projects - Nominal | G139: £m | H139: 0
E140: WSX - Allowed Future expenditure on innovation projects - Nominal | G140: £m | H140: 0
E141: YKY - Allowed Future expenditure on innovation projects - Nominal | G141: £m | H141: 0
E142: AFW - Allowed Future expenditure on innovation projects - Nominal | G142: £m | H142: 0
E143: BRL - Allowed Future expenditure on innovation projects - Nominal | G143: £m | H143: 0
E144: PRT - Allowed Future expenditure on innovation projects - Nominal | G144: £m | H144: 0 | K144: 0 | L144: 0 | M144: 0 | N144: 0 | O144: 0
E145: SES - Allowed Future expenditure on innovation projects - Nominal | G145: £m | H145: 0
E146: SEW - Allowed Future expenditure on innovation projects - Nominal | G146: £m | H146: 0
E147: SSC - Allowed Future expenditure on innovation projects - Nominal | G147: £m | H147: 0
E148: NAV - Allowed Future expenditure on innovation projects - Nominal | G148: £m | H148: =SUM(K148:O148) -> 0
A151: FINANCING INPUTS
B153: Model Tolerance
E154: Financing cost index | G154: Index | K154: 4 | L154: 3 | M154: 2 | N154: 1 | O154: 0
E156: ANH - WACC | G156: %
E157: HDD - WACC | G157: %
E158: NES - WACC | G158: %
E159: NWT - WACC | G159: %
E160: SRN - WACC | G160: %
E161: SVE - WACC | G161: %
E162: SWB - WACC | G162: %
E163: TMS - WACC | G163: %
E164: WSH - WACC | G164: %
E165: WSX - WACC | G165: %
E166: YKY - WACC | G166: %
E167: AFW - WACC | G167: %
E168: BRL - WACC | G168: %
E169: PRT - WACC | F169: 0.0311 | G169: %
E170: SES - WACC | G170: %
E171: SEW - WACC | G171: %
E172: SSC - WACC | G172: %
A174: INDEXATION
D176: CPI(H) - base index 2017-18
E177: Consumer price index (including housing costs) - Consumer Price Index (with housing) for April | F177: 103.2 | G177: Index
E178: Consumer price index (including housing costs) - Consumer Price Index (with housing) for May | F178: 103.5 | G178: Index
E179: Consumer price index (including housing costs) - Consumer Price Index (with housing) for June | F179: 103.5 | G179: Index
E180: Consumer price index (including housing costs) - Consumer Price Index (with housing) for July | F180: 103.5 | G180: Index
E181: Consumer price index (including housing costs) - Consumer Price Index (with housing) for August | F181: 104 | G181: Index
E182: Consumer price index (including housing costs) - Consumer Price Index (with housing) for September | F182: 104.3 | G182: Index
E183: Consumer price index (including housing costs) - Consumer Price Index (with housing) for October | F183: 104.4 | G183: Index
E184: Consumer price index (including housing costs) - Consumer Price Index (with housing) for November | F184: 104.7 | G184: Index
E185: Consumer price index (including housing costs) - Consumer Price Index (with housing) for December | F185: 105 | G185: Index
E186: Consumer price index (including housing costs) - Consumer Price Index (with housing) for January | F186: 104.5 | G186: Index
E187: Consumer price index (including housing costs) - Consumer Price Index (with housing) for February | F187: 104.9 | G187: Index
E188: Consumer price index (including housing costs) - Consumer Price Index (with housing) for March | F188: 105.1 | G188: Index
D190: CPI(H) forecast periods
E191: Consumer price index (including housing costs) - Consumer Price Index (with housing) for April | G191: Index | J191: 107.6 | K191: 108.6 | L191: 110.4 | M191: 119 | N191: 128.3 | O191: 129.7113 | P191: 132.305526
E192: Consumer price index (including housing costs) - Consumer Price Index (with housing) for May | G192: Index | J192: 107.9 | K192: 108.6 | L192: 111 | M192: 119.7 | N192: 129.1 | O192: 130.5201 | P192: 133.130502
E193: Consumer price index (including housing costs) - Consumer Price Index (with housing) for June | G193: Index | J193: 107.9 | K193: 108.8 | L193: 111.4 | M193: 120.5 | N193: 129.4 | O193: 130.8234 | P193: 133.439868
E194: Consumer price index (including housing costs) - Consumer Price Index (with housing) for July | G194: Index | J194: 108 | K194: 109.2 | L194: 111.4 | M194: 121.2 | N194: 127.866 | O194: 129.016794 | P194: 131.5971299
E195: Consumer price index (including housing costs) - Consumer Price Index (with housing) for August | G195: Index | J195: 108.3 | K195: 108.8 | L195: 112.1 | M195: 121.8 | N195: 128.499 | O195: 129.655491 | P195: 132.2486008
E196: Consumer price index (including housing costs) - Consumer Price Index (with housing) for September | G196: Index | J196: 108.4 | K196: 109.2 | L196: 112.4 | M196: 122.3 | N196: 129.0265 | O196: 130.1877385 | P196: 132.7914933
E197: Consumer price index (including housing costs) - Consumer Price Index (with housing) for October | G197: Index | J197: 108.3 | K197: 109.2 | L197: 113.4 | M197: 124.3 | N197: 128.1533 | O197: 129.1785264 | P197: 131.7620969
E198: Consumer price index (including housing costs) - Consumer Price Index (with housing) for November | G198: Index | J198: 108.5 | K198: 109.1 | L198: 114.1 | M198: 124.8 | N198: 128.6688 | O198: 129.6981504 | P198: 132.2921134
E199: Consumer price index (including housing costs) - Consumer Price Index (with housing) for December | G199: Index | J199: 108.5 | K199: 109.4 | L199: 114.7 | M199: 125.3 | N199: 129.1843 | O199: 130.2177744 | P199: 132.8221299
E200: Consumer price index (including housing costs) - Consumer Price Index (with housing) for January | G200: Index | J200: 108.3 | K200: 109.3 | L200: 114.6 | M200: 124.8 | N200: 127.0464 | O200: 128.0627712 | P200: 130.6240266
E201: Consumer price index (including housing costs) - Consumer Price Index (with housing) for February | G201: Index | J201: 108.6 | K201: 109.4 | L201: 115.4 | M201: 126 | N201: 128.268 | O201: 129.294144 | P201: 131.8800269
E202: Consumer price index (including housing costs) - Consumer Price Index (with housing) for March | G202: Index | J202: 108.6 | K202: 109.7 | L202: 116.5 | M202: 126.8 | N202: 129.0824 | O202: 130.1150592 | P202: 132.7173604
A204: NON CHANGEABLE INPUTS
B206: Model Tolerance
E208: Model Track Tolerance Level | F208: 0.001 | G208: tolerance
A210: END OF SHEET

Sheet Calc-->

Sheet Indexation
A1: =RIGHT(CELL("filename", $A$1), LEN(CELL("filename", $A$1)) - SEARCH("]", CELL("filename", $A$1))) -> Indexation
E2: =Time!E$22 -> Model Period BEG | J2: =Time!J$22 -> 2019-04-01 | K2: =Time!K$22 -> 2020-04-01 | L2: =Time!L$22 -> 2021-04-01 | M2: =Time!M$22 -> 2022-04-01 | N2: =Time!N$22 -> 2023-04-01 | O2: =Time!O$22 -> 2024-04-01 | P2: =Time!P$22 -> 2025-04-01
E3: =Time!E$23 -> Model Period END | F3: =Check!F$8 -> 0 | G3: Error chks | J3: =Time!J$23 -> 2020-03-31 | K3: =Time!K$23 -> 2021-03-31 | L3: =Time!L$23 -> 2022-03-31 | M3: =Time!M$23 -> 2023-03-31 | N3: =Time!N$23 -> 2024-03-31 | O3: =Time!O$23 -> 2025-03-31 | P3: =Time!P$23 -> 2026-03-31
E4: =Time!E$59 -> Pre Forecast vs Forecast | J4: =Time!J$59 -> Pre Fcst | K4: =Time!K$59 -> Forecast | L4: =Time!L$59 -> Forecast | M4: =Time!M$59 -> Forecast | N4: =Time!N$59 -> Forecast | O4: =Time!O$59 -> Forecast | P4: =Time!P$59 -> Post-Fcst
E5: =Time!E$101 -> Financial Year Ending | J5: =Time!J$101 -> 2020 | K5: =Time!K$101 -> 2021 | L5: =Time!L$101 -> 2022 | M5: =Time!M$101 -> 2023 | N5: =Time!N$101 -> 2024 | O5: =Time!O$101 -> 2025 | P5: =Time!P$101 -> 2026
E6: =Time!E$11 -> Model column counter | F6: Constant | G6: Unit | H6: Total | J6: =Time!J$11 -> 1 | K6: =Time!K$11 -> 2 | L6: =Time!L$11 -> 3 | M6: =Time!M$11 -> 4 | N6: =Time!N$11 -> 5 | O6: =Time!O$11 -> 6 | P6: =Time!P$11 -> 7
A8: CPIH INDEXATION
B10: Average CPI(H) - base index 2017-18
E11: =InpActive!E177 -> Consumer price index (including housing costs) - Consumer Price Index (with housing) for April | F11: =InpActive!F177 -> 103.2 | G11: =InpActive!G177 -> Index
E12: =InpActive!E178 -> Consumer price index (including housing costs) - Consumer Price Index (with housing) for May | F12: =InpActive!F178 -> 103.5 | G12: =InpActive!G178 -> Index
E13: =InpActive!E179 -> Consumer price index (including housing costs) - Consumer Price Index (with housing) for June | F13: =InpActive!F179 -> 103.5 | G13: =InpActive!G179 -> Index
E14: =InpActive!E180 -> Consumer price index (including housing costs) - Consumer Price Index (with housing) for July | F14: =InpActive!F180 -> 103.5 | G14: =InpActive!G180 -> Index
E15: =InpActive!E181 -> Consumer price index (including housing costs) - Consumer Price Index (with housing) for August | F15: =InpActive!F181 -> 104 | G15: =InpActive!G181 -> Index
E16: =InpActive!E182 -> Consumer price index (including housing costs) - Consumer Price Index (with housing) for September | F16: =InpActive!F182 -> 104.3 | G16: =InpActive!G182 -> Index
E17: =InpActive!E183 -> Consumer price index (including housing costs) - Consumer Price Index (with housing) for October | F17: =InpActive!F183 -> 104.4 | G17: =InpActive!G183 -> Index
E18: =InpActive!E184 -> Consumer price index (including housing costs) - Consumer Price Index (with housing) for November | F18: =InpActive!F184 -> 104.7 | G18: =InpActive!G184 -> Index
E19: =InpActive!E185 -> Consumer price index (including housing costs) - Consumer Price Index (with housing) for December | F19: =InpActive!F185 -> 105 | G19: =InpActive!G185 -> Index
E20: =InpActive!E186 -> Consumer price index (including housing costs) - Consumer Price Index (with housing) for January | F20: =InpActive!F186 -> 104.5 | G20: =InpActive!G186 -> Index
E21: =InpActive!E187 -> Consumer price index (including housing costs) - Consumer Price Index (with housing) for February | F21: =InpActive!F187 -> 104.9 | G21: =InpActive!G187 -> Index
E22: =InpActive!E188 -> Consumer price index (including housing costs) - Consumer Price Index (with housing) for March | F22: =InpActive!F188 -> 105.1 | G22: =InpActive!G188 -> Index
E23: CPIH 2017-18 FYA - Base Year | F23: =AVERAGE(F11:F22) -> 104.2166667 | G23: Index
B25: Average CPI(H) forecast periods
E26: =InpActive!E191 -> Consumer price index (including housing costs) - Consumer Price Index (with housing) for April | F26: =InpActive!F191 -> 0 | G26: =InpActive!G191 -> Index | H26: =InpActive!H191 -> 0 | I26: =InpActive!I191 -> 0 | J26: =InpActive!J191 -> 107.6 | K26: =InpActive!K191 -> 108.6 | L26: =InpActive!L191 -> 110.4 | M26: =InpActive!M191 -> 119 | N26: =InpActive!N191 -> 128.3 | O26: =InpActive!O191 -> 129.7113 | P26: =InpActive!P191 -> 132.305526
E27: =InpActive!E192 -> Consumer price index (including housing costs) - Consumer Price Index (with housing) for May | F27: =InpActive!F192 -> 0 | G27: =InpActive!G192 -> Index | H27: =InpActive!H192 -> 0 | I27: =InpActive!I192 -> 0 | J27: =InpActive!J192 -> 107.9 | K27: =InpActive!K192 -> 108.6 | L27: =InpActive!L192 -> 111 | M27: =InpActive!M192 -> 119.7 | N27: =InpActive!N192 -> 129.1 | O27: =InpActive!O192 -> 130.5201 | P27: =InpActive!P192 -> 133.130502
E28: =InpActive!E193 -> Consumer price index (including housing costs) - Consumer Price Index (with housing) for June | F28: =InpActive!F193 -> 0 | G28: =InpActive!G193 -> Index | H28: =InpActive!H193 -> 0 | I28: =InpActive!I193 -> 0 | J28: =InpActive!J193 -> 107.9 | K28: =InpActive!K193 -> 108.8 | L28: =InpActive!L193 -> 111.4 | M28: =InpActive!M193 -> 120.5 | N28: =InpActive!N193 -> 129.4 | O28: =InpActive!O193 -> 130.8234 | P28: =InpActive!P193 -> 133.439868
E29: =InpActive!E194 -> Consumer price index (including housing costs) - Consumer Price Index (with housing) for July | F29: =InpActive!F194 -> 0 | G29: =InpActive!G194 -> Index | H29: =InpActive!H194 -> 0 | I29: =InpActive!I194 -> 0 | J29: =InpActive!J194 -> 108 | K29: =InpActive!K194 -> 109.2 | L29: =InpActive!L194 -> 111.4 | M29: =InpActive!M194 -> 121.2 | N29: =InpActive!N194 -> 127.866 | O29: =InpActive!O194 -> 129.016794 | P29: =InpActive!P194 -> 131.5971299
E30: =InpActive!E195 -> Consumer price index (including housing costs) - Consumer Price Index (with housing) for August | F30: =InpActive!F195 -> 0 | G30: =InpActive!G195 -> Index | H30: =InpActive!H195 -> 0 | I30: =InpActive!I195 -> 0 | J30: =InpActive!J195 -> 108.3 | K30: =InpActive!K195 -> 108.8 | L30: =InpActive!L195 -> 112.1 | M30: =InpActive!M195 -> 121.8 | N30: =InpActive!N195 -> 128.499 | O30: =InpActive!O195 -> 129.655491 | P30: =InpActive!P195 -> 132.2486008
E31: =InpActive!E196 -> Consumer price index (including housing costs) - Consumer Price Index (with housing) for September | F31: =InpActive!F196 -> 0 | G31: =InpActive!G196 -> Index | H31: =InpActive!H196 -> 0 | I31: =InpActive!I196 -> 0 | J31: =InpActive!J196 -> 108.4 | K31: =InpActive!K196 -> 109.2 | L31: =InpActive!L196 -> 112.4 | M31: =InpActive!M196 -> 122.3 | N31: =InpActive!N196 -> 129.0265 | O31: =InpActive!O196 -> 130.1877385 | P31: =InpActive!P196 -> 132.7914933
E32: =InpActive!E197 -> Consumer price index (including housing costs) - Consumer Price Index (with housing) for October | F32: =InpActive!F197 -> 0 | G32: =InpActive!G197 -> Index | H32: =InpActive!H197 -> 0 | I32: =InpActive!I197 -> 0 | J32: =InpActive!J197 -> 108.3 | K32: =InpActive!K197 -> 109.2 | L32: =InpActive!L197 -> 113.4 | M32: =InpActive!M197 -> 124.3 | N32: =InpActive!N197 -> 128.1533 | O32: =InpActive!O197 -> 129.1785264 | P32: =InpActive!P197 -> 131.7620969
E33: =InpActive!E198 -> Consumer price index (including housing costs) - Consumer Price Index (with housing) for November | F33: =InpActive!F198 -> 0 | G33: =InpActive!G198 -> Index | H33: =InpActive!H198 -> 0 | I33: =InpActive!I198 -> 0 | J33: =InpActive!J198 -> 108.5 | K33: =InpActive!K198 -> 109.1 | L33: =InpActive!L198 -> 114.1 | M33: =InpActive!M198 -> 124.8 | N33: =InpActive!N198 -> 128.6688 | O33: =InpActive!O198 -> 129.6981504 | P33: =InpActive!P198 -> 132.2921134
E34: =InpActive!E199 -> Consumer price index (including housing costs) - Consumer Price Index (with housing) for December | F34: =InpActive!F199 -> 0 | G34: =InpActive!G199 -> Index | H34: =InpActive!H199 -> 0 | I34: =InpActive!I199 -> 0 | J34: =InpActive!J199 -> 108.5 | K34: =InpActive!K199 -> 109.4 | L34: =InpActive!L199 -> 114.7 | M34: =InpActive!M199 -> 125.3 | N34: =InpActive!N199 -> 129.1843 | O34: =InpActive!O199 -> 130.2177744 | P34: =InpActive!P199 -> 132.8221299
E35: =InpActive!E200 -> Consumer price index (including housing costs) - Consumer Price Index (with housing) for January | F35: =InpActive!F200 -> 0 | G35: =InpActive!G200 -> Index | H35: =InpActive!H200 -> 0 | I35: =InpActive!I200 -> 0 | J35: =InpActive!J200 -> 108.3 | K35: =InpActive!K200 -> 109.3 | L35: =InpActive!L200 -> 114.6 | M35: =InpActive!M200 -> 124.8 | N35: =InpActive!N200 -> 127.0464 | O35: =InpActive!O200 -> 128.0627712 | P35: =InpActive!P200 -> 130.6240266
E36: =InpActive!E201 -> Consumer price index (including housing costs) - Consumer Price Index (with housing) for February | F36: =InpActive!F201 -> 0 | G36: =InpActive!G201 -> Index | H36: =InpActive!H201 -> 0 | I36: =InpActive!I201 -> 0 | J36: =InpActive!J201 -> 108.6 | K36: =InpActive!K201 -> 109.4 | L36: =InpActive!L201 -> 115.4 | M36: =InpActive!M201 -> 126 | N36: =InpActive!N201 -> 128.268 | O36: =InpActive!O201 -> 129.294144 | P36: =InpActive!P201 -> 131.8800269
E37: =InpActive!E202 -> Consumer price index (including housing costs) - Consumer Price Index (with housing) for March | F37: =InpActive!F202 -> 0 | G37: =InpActive!G202 -> Index | H37: =InpActive!H202 -> 0 | I37: =InpActive!I202 -> 0 | J37: =InpActive!J202 -> 108.6 | K37: =InpActive!K202 -> 109.7 | L37: =InpActive!L202 -> 116.5 | M37: =InpActive!M202 -> 126.8 | N37: =InpActive!N202 -> 129.0824 | O37: =InpActive!O202 -> 130.1150592 | P37: =InpActive!P202 -> 132.7173604
E38: CPIH: Financial year average - indices | G38: Index | J38: =AVERAGE(J26:J37) -> 108.2416667 | K38: =AVERAGE(K26:K37) -> 109.1083333 | L38: =AVERAGE(L26:L37) -> 113.1166667 | M38: 123.0416667 | N38: 128.5495583 | O38: 129.7067708 | P38: =AVERAGE(P26:P37) -> 132.3009062
B40: CPI(H): Fin year average - conversion from outurn to base year 2017-18 average
E42: =E$23 -> CPIH 2017-18 FYA - Base Year | F42: =F$23 -> 104.2166667 | G42: Index
E43: =E$38 -> CPIH: Financial year average - indices | F43: =F$38 -> 0 | G43: =G$38 -> Index | H43: =H$38 -> 0 | J43: =J$38 -> 108.2416667 | K43: 109.1083333 | L43: 113.1166667 | M43: 123.0416667 | N43: 128.5495583 | O43: 129.7067708 | P43: 132.3009062
E44: CPI(H): Fin year average - conversion from outturn to base year 2017-18 average - CALC | G44: % | J44: =IF($F42 = 0, 0, J43 / $F42) -> 1.038621462 | K44: =IF($F42 = 0, 0, K43 / $F42) -> 1.04693747 | L44: =IF($F42 = 0, 0, L43 / $F42) -> 1.085399008 | M44: 1.180633296 | N44: 1.233483688 | O44: 1.244587597 | P44: =IF($F42 = 0, 0, P43 / $F42) -> 1.269479349
A47: End of sheet

Sheet Time
A1: =RIGHT(CELL("filename", $A$1), LEN(CELL("filename", $A$1)) - SEARCH("]", CELL("filename", $A$1))) -> Time
E2: =Time!E$22 -> Model Period BEG | J2: =Time!J$22 -> 2019-04-01 | K2: =Time!K$22 -> 2020-04-01 | L2: =Time!L$22 -> 2021-04-01 | M2: =Time!M$22 -> 2022-04-01 | N2: =Time!N$22 -> 2023-04-01 | O2: =Time!O$22 -> 2024-04-01 | P2: =Time!P$22 -> 2025-04-01
E3: =Time!E$23 -> Model Period END | F3: =Check!F$8 -> 0 | G3: Error chks | J3: =Time!J$23 -> 2020-03-31 | K3: =Time!K$23 -> 2021-03-31 | L3: =Time!L$23 -> 2022-03-31 | M3: =Time!M$23 -> 2023-03-31 | N3: =Time!N$23 -> 2024-03-31 | O3: =Time!O$23 -> 2025-03-31 | P3: =Time!P$23 -> 2026-03-31
E4: =Time!E$59 -> Pre Forecast vs Forecast | J4: =Time!J$59 -> Pre Fcst | K4: =Time!K$59 -> Forecast | L4: =Time!L$59 -> Forecast | M4: =Time!M$59 -> Forecast | N4: =Time!N$59 -> Forecast | O4: =Time!O$59 -> Forecast | P4: =Time!P$59 -> Post-Fcst
E5: =Time!E$101 -> Financial Year Ending | J5: =Time!J$101 -> 2020 | K5: =Time!K$101 -> 2021 | L5: =Time!L$101 -> 2022 | M5: =Time!M$101 -> 2023 | N5: =Time!N$101 -> 2024 | O5: =Time!O$101 -> 2025 | P5: =Time!P$101 -> 2026
E6: =Time!E$11 -> Model column counter | F6: Constant | G6: Unit | H6: Total | J6: =Time!J$11 -> 1 | K6: =Time!K$11 -> 2 | L6: =Time!L$11 -> 3 | M6: =Time!M$11 -> 4 | N6: =Time!N$11 -> 5 | O6: =Time!O$11 -> 6 | P6: =Time!P$11 -> 7
A8: MODEL PERIOD
B10: Model Column Counter
E11: Model column counter | G11: counter | J11: =I11 + 1 -> 1 | K11: =J11 + 1 -> 2 | L11: =K11 + 1 -> 3 | M11: 4 | N11: 5 | O11: 6 | P11: =O11 + 1 -> 7
E12: Model Column Total | F12: =MAX(J11:P11) -> 7 | G12: column
E14: =E$11 -> Model column counter | F14: 0 | G14: counter | H14: 0 | I14: 0 | J14: 1 | K14: 2 | L14: 3 | M14: 4 | N14: 5 | O14: 6 | P14: 7
E15: First model column flag | G15: flag | H15: =SUM(J15:P15) -> 1 | J15: =IF( J14 = 1, 1, 0) -> 1 | K15: =IF( K14 = 1, 1, 0) -> 0 | L15: 0 | M15: 0 | N15: 0 | O15: 0 | P15: 0
E17: =InpActive!E$10 -> First date of time ruler | F17: =InpActive!F$10 -> 2019-04-01 | G17: =InpActive!G$10 -> date
E18: First model period BEG | F18: =DATE(YEAR(F17), MONTH(F17), 1) -> 2019-04-01 | G18: month
E20: =E$18 -> First model period BEG | F20: =F$18 -> 2019-04-01 | G20: =G$18 -> month
E21: =E$15 -> First model column flag | F21: 0 | G21: flag | H21: 1 | I21: 0 | J21: 1 | K21: 0 | L21: 0 | M21: 0 | N21: 0 | O21: 0 | P21: 0
E22: Model Period BEG | G22: date | J22: =IF( J21 = 1, $F20, I23 + 1) -> 2019-04-01 | K22: =IF( K21 = 1, $F20, J23 + 1) -> 2020-04-01 | L22: 2021-04-01 | M22: 2022-04-01 | N22: 2023-04-01 | O22: 2024-04-01 | P22: =IF( P21 = 1, $F20, O23 + 1) -> 2025-04-01
E23: Model Period END | G23: date | J23: =DATE(YEAR(J22), MONTH(J22) + 12, DAY(1) - 1) -> 2020-03-31 | K23: 2021-03-31 | L23: 2022-03-31 | M23: 2023-03-31 | N23: 2024-03-31 | O23: 2025-03-31 | P23: 2026-03-31
E25: =E$23 -> Model Period END | F25: 00:00:00 | G25: date | H25: 00:00:00 | I25: 00:00:00 | J25: 2020-03-31 | K25: 2021-03-31 | L25: 2022-03-31 | M25: 2023-03-31 | N25: 2024-03-31 | O25: 2025-03-31 | P25: 2026-03-31
D26: less | E26: =E$22 -> Model Period BEG | F26: 00:00:00 | G26: date | H26: 00:00:00 | I26: 00:00:00 | J26: 2019-04-01 | K26: 2020-04-01 | L26: 2021-04-01 | M26: 2022-04-01 | N26: 2023-04-01 | O26: 2024-04-01 | P26: 2025-04-01
E27: Days in Model Period | G27: days | H27: =SUM(J27:P27) -> 2557 | J27: =J25 - J26 + 1 -> 366 | K27: 365 | L27: 365 | M27: 365 | N27: 366 | O27: 365 | P27: 365
A30: PRE FORECAST PERIOD
E32: =InpActive!E$12 -> Last Pre Forecast Date | F32: =InpActive!F$12 -> 2020-03-31 | G32: =InpActive!G$12 -> date
E33: =E$23 -> Model Period END | F33: 00:00:00 | G33: date | H33: 00:00:00 | I33: 00:00:00 | J33: 2020-03-31 | K33: 2021-03-31 | L33: 2022-03-31 | M33: 2023-03-31 | N33: 2024-03-31 | O33: 2025-03-31 | P33: 2026-03-31
E34: Last Pre Forecast Flag | G34: flag | H34: =SUM(J34:P34) -> 1 | J34: =IF(J33 = $F32, 1, 0) -> 1 | K34: 0 | L34: 0 | M34: 0 | N34: 0 | O34: 0 | P34: 0
E35: Pre Forecast Period Flag | G35: flag | H35: =SUM(J35:P35) -> 1 | J35: =IF($F32 >= J33, 1, 0) -> 1 | K35: =IF($F32 >= K33, 1, 0) -> 0 | L35: 0 | M35: 0 | N35: 0 | O35: 0 | P35: 0
E36: Pre Forecast Period Total | F36: =SUM(J35:P35) -> 1 | G36: columns
E38: =InpActive!E$14 -> Acquisition date (midnight) | F38: =InpActive!F$14 -> 2020-03-31 | G38: =InpActive!G$14 -> date
E39: =E$23 -> Model Period END | F39: 00:00:00 | G39: date | H39: 00:00:00 | I39: 00:00:00 | J39: 2020-03-31 | K39: 2021-03-31 | L39: 2022-03-31 | M39: 2023-03-31 | N39: 2024-03-31 | O39: 2025-03-31 | P39: 2026-03-31
E40: Acquisition / initial balance date flag | G40: flag | H40: =SUM(J40:P40) -> 1 | J40: =IF(J39 = $F38, 1, 0) -> 1 | K40: 0 | L40: 0 | M40: 0 | N40: 0 | O40: 0 | P40: 0
A43: FORECAST PERIOD
E45: =E$34 -> Last Pre Forecast Flag | F45: 0 | G45: flag | H45: 1 | I45: 0 | J45: 1 | K45: 0 | L45: 0 | M45: 0 | N45: 0 | O45: 0 | P45: 0
E46: 1st Forecast Period Flag | G46: flag | H46: =SUM(J46:P46) -> 1 | J46: =I45 -> 0 | K46: =J45 -> 1 | L46: 0 | M46: 0 | N46: 0 | O46: 0 | P46: =O45 -> 0
E48: =InpActive!E$16 -> Last forecast date | F48: =InpActive!F$16 -> 2025-03-31 | G48: =InpActive!G$16 -> date
E49: =E$23 -> Model Period END | F49: 00:00:00 | G49: date | H49: 00:00:00 | I49: 00:00:00 | J49: 2020-03-31 | K49: 2021-03-31 | L49: 2022-03-31 | M49: 2023-03-31 | N49: 2024-03-31 | O49: 2025-03-31 | P49: 2026-03-31
E50: Last Forecast Period Flag | G50: flag | H50: =SUM(J50:P50) -> 1 | J50: =IF(AND($F48 > I49, $F48 <= J49), 1, 0) -> 0 | K50: =IF(AND($F48 > J49, $F48 <= K49), 1, 0) -> 0 | L50: 0 | M50: 0 | N50: 0 | O50: 1 | P50: =IF(AND($F48 > O49, $F48 <= P49), 1, 0) -> 0
E52: =E$46 -> 1st Forecast Period Flag | F52: 0 | G52: flag | H52: 1 | I52: 0 | J52: 0 | K52: 1 | L52: 0 | M52: 0 | N52: 0 | O52: 0 | P52: 0
E53: =E$50 -> Last Forecast Period Flag | F53: 0 | G53: flag | H53: 1 | I53: 0 | J53: 0 | K53: 0 | L53: 0 | M53: 0 | N53: 0 | O53: 1 | P53: 0
E54: Forecast Period Flag | G54: flag | H54: =SUM(J54:P54) -> 5 | J54: =J52 - I53 + I54 -> 0 | K54: =K52 - J53 + J54 -> 1 | L54: 1 | M54: 1 | N54: 1 | O54: 1 | P54: =P52 - O53 + O54 -> 0
E55: Forecast Period Total | F55: =SUM(J54:P54) -> 5 | G55: columns
E57: =E$35 -> Pre Forecast Period Flag | F57: 0 | G57: flag | H57: 1 | I57: 0 | J57: 1 | K57: 0 | L57: 0 | M57: 0 | N57: 0 | O57: 0 | P57: 0
E58: =E$54 -> Forecast Period Flag | F58: 0 | G58: flag | H58: 5 | I58: 0 | J58: 0 | K58: 1 | L58: 1 | M58: 1 | N58: 1 | O58: 1 | P58: 0
E59: Pre Forecast vs Forecast | G59: flag | J59: =IF(J57 = 1, "Pre Fcst", IF(J58 = 1, "Forecast", "Post-Fcst")) -> Pre Fcst | K59: Forecast | L59: Forecast | M59: Forecast | N59: Forecast | O59: Forecast | P59: Post-Fcst
A62: POST FORECAST PERIOD
E64: =E$50 -> Last Forecast Period Flag | F64: 0 | G64: flag | H64: 1 | I64: 0 | J64: 0 | K64: 0 | L64: 0 | M64: 0 | N64: 0 | O64: 1 | P64: 0
E65: 1st Post Last Forecast Period Flag | G65: flag | H65: =SUM(J65:P65) -> 1 | J65: =I64 -> 0 | K65: =J64 -> 0 | L65: 0 | M65: 0 | N65: 0 | O65: 0 | P65: =O64 -> 1
E67: =E$65 -> 1st Post Last Forecast Period Flag | F67: 0 | G67: flag | H67: 1 | I67: 0 | J67: 0 | K67: 0 | L67: 0 | M67: 0 | N67: 0 | O67: 0 | P67: 1
E68: Post Forecast Period Flag | G68: flag | H68: =SUM(J68:P68) -> 1 | J68: =I68 + J67 -> 0 | K68: =J68 + K67 -> 0 | L68: 0 | M68: 0 | N68: 0 | O68: 0 | P68: =O68 + P67 -> 1
E69: Post Forecast Period Total | F69: =SUM(J68:P68) -> 1 | G69: columns
A72: MODELLING PERIOD CHECK
E74: =E$12 -> Model Column Total | F74: =F$12 -> 7 | G74: =G$12 -> column
D75: less | E75: =E$36 -> Pre Forecast Period Total | F75: =F$36 -> 1 | G75: =G$36 -> columns
D76: less | E76: =E$55 -> Forecast Period Total | F76: =F$55 -> 5 | G76: =G$55 -> columns
D77: less | E77: =E$69 -> Post Forecast Period Total | F77: =F$69 -> 1 | G77: =G$69 -> columns
E78: Modelling Period Check | F78: =IF(F74 - SUM(F75:F77) <> 0, 1, 0) -> 0 | G78: check
A81: PARTIAL PERIOD FLAG (PPF)
C82: This is an example of a part period flag. It is not currently used.
B83: Operation Partial Period Flag (PPF)
E84: =E$18 -> First model period BEG | F84: =F$18 -> 2019-04-01 | G84: =G$18 -> month
E85: =InpActive!E$20 -> Operation Finish Date (midnight) | F85: =InpActive!F$20 -> 2025-03-31 | G85: =InpActive!G$20 -> date
E86: =E$22 -> Model Period BEG | F86: 00:00:00 | G86: date | H86: 00:00:00 | I86: 00:00:00 | J86: 2019-04-01 | K86: 2020-04-01 | L86: 2021-04-01 | M86: 2022-04-01 | N86: 2023-04-01 | O86: 2024-04-01 | P86: 2025-04-01
E87: =E$23 -> Model Period END | F87: 00:00:00 | G87: date | H87: 00:00:00 | I87: 00:00:00 | J87: 2020-03-31 | K87: 2021-03-31 | L87: 2022-03-31 | M87: 2023-03-31 | N87: 2024-03-31 | O87: 2025-03-31 | P87: 2026-03-31
E88: Days in Operation Period | G88: days | H88: =SUM(J88:P88) -> 2192 | J88: =MAX(0, (MIN($F85, J87) - MAX($F84, J86) + 1)) -> 366 | K88: 365 | L88: 365 | M88: 365 | N88: 366 | O88: 365 | P88: 0
E90: =E$88 -> Days in Operation Period | F90: 0 | G90: days | H90: 2192 | I90: 0 | J90: 366 | K90: 365 | L90: 365 | M90: 365 | N90: 366 | O90: 365 | P90: 0
E91: =E$27 -> Days in Model Period | F91: 0 | G91: days | H91: 2557 | I91: 0 | J91: 366 | K91: 365 | L91: 365 | M91: 365 | N91: 366 | O91: 365 | P91: 365
E92: Operation Period PPF | G92: factor | H92: =SUM(J92:P92) -> 6 | J92: =J90 / J91 -> 1 | K92: 1 | L92: 1 | M92: 1 | N92: 1 | O92: 1 | P92: 0
A95: FINANCIAL YEAR
E97: =InpActive!E21 -> First Modelling Column Financial Year Number | F97: =InpActive!F21 -> 2020 | G97: =InpActive!G21 -> year
E98: =InpActive!E22 -> Financial Year End Month Number | F98: =InpActive!F22 -> 3 | G98: =InpActive!G22 -> month #
E99: =E$23 -> Model Period END | F99: 00:00:00 | G99: date | H99: 00:00:00 | I99: 00:00:00 | J99: 2020-03-31 | K99: 2021-03-31 | L99: 2022-03-31 | M99: 2023-03-31 | N99: 2024-03-31 | O99: 2025-03-31 | P99: 2026-03-31
E100: =E$15 -> First model column flag | F100: 0 | G100: flag | H100: 1 | I100: 0 | J100: 1 | K100: 0 | L100: 0 | M100: 0 | N100: 0 | O100: 0 | P100: 0
E101: Financial Year Ending | G101: year # | J101: =IF(J100 = 1, $F97, IF(J99 > (DATE(I101, $F98 + 1, 1) - 1), I101 + 1, I101)) -> 2020 | K101: =IF(K100 = 1, $F97, IF(K99 > (DATE(J101, $F98 + 1, 1) - 1), J101 + 1, J101)) -> 2021 | L101: 2022 | M101: 2023 | N101: 2024 | O101: 2025 | P101: =IF(P100 = 1, $F97, IF(P99 > (DATE(O101, $F98 + 1, 1) - 1), O101 + 1, O101)) -> 2026
A104: END OF SHEET

Sheet Innovation funding return
A1: =RIGHT(CELL("filename", $A$1), LEN(CELL("filename", $A$1)) - SEARCH("]", CELL("filename", $A$1))) -> Innovation funding return
E2: =Time!E$22 -> Model Period BEG | J2: =Time!J$22 -> 2019-04-01 | K2: =Time!K$22 -> 2020-04-01 | L2: =Time!L$22 -> 2021-04-01 | M2: =Time!M$22 -> 2022-04-01 | N2: =Time!N$22 -> 2023-04-01 | O2: =Time!O$22 -> 2024-04-01 | P2: =Time!P$22 -> 2025-04-01
E3: =Time!E$23 -> Model Period END | F3: =Check!F$8 -> 0 | G3: Error chks | J3: =Time!J$23 -> 2020-03-31 | K3: =Time!K$23 -> 2021-03-31 | L3: =Time!L$23 -> 2022-03-31 | M3: =Time!M$23 -> 2023-03-31 | N3: =Time!N$23 -> 2024-03-31 | O3: =Time!O$23 -> 2025-03-31 | P3: =Time!P$23 -> 2026-03-31
E4: =Time!E$59 -> Pre Forecast vs Forecast | J4: =Time!J$59 -> Pre Fcst | K4: =Time!K$59 -> Forecast | L4: =Time!L$59 -> Forecast | M4: =Time!M$59 -> Forecast | N4: =Time!N$59 -> Forecast | O4: =Time!O$59 -> Forecast | P4: =Time!P$59 -> Post-Fcst
E5: =Time!E$101 -> Financial Year Ending | J5: =Time!J$101 -> 2020 | K5: =Time!K$101 -> 2021 | L5: =Time!L$101 -> 2022 | M5: =Time!M$101 -> 2023 | N5: =Time!N$101 -> 2024 | O5: =Time!O$101 -> 2025 | P5: =Time!P$101 -> 2026
E6: =Time!E$11 -> Model column counter | F6: Constant | G6: Unit | H6: Total | J6: =Time!J$11 -> 1 | K6: =Time!K$11 -> 2 | L6: =Time!L$11 -> 3 | M6: =Time!M$11 -> 4 | N6: =Time!N$11 -> 5 | O6: =Time!O$11 -> 6 | P6: =Time!P$11 -> 7
D8: Allocated Funding - Real
E9: =InpActive!E28 -> ANH - Allocated innovation funding - Real | F9: =InpActive!F28 -> 0 | G9: =InpActive!G28 -> £m | H9: =InpActive!H28 -> 20.98678418 | I9: =InpActive!I28 -> 0 | J9: =InpActive!J28 -> 0 | K9: =InpActive!K28 -> 4.197356835 | L9: =InpActive!L28 -> 4.197356835 | M9: =InpActive!M28 -> 4.197356835 | N9: =InpActive!N28 -> 4.197356835 | O9: =InpActive!O28 -> 4.197356835 | P9: =InpActive!P28 -> 0
E10: =InpActive!E29 -> HDD - Allocated innovation funding - Real | F10: =InpActive!F29 -> 0 | G10: =InpActive!G29 -> £m | H10: =InpActive!H29 -> 0.454895641 | I10: =InpActive!I29 -> 0 | J10: =InpActive!J29 -> 0 | K10: =InpActive!K29 -> 0.0909791282 | L10: =InpActive!L29 -> 0.0909791282 | M10: =InpActive!M29 -> 0.0909791282 | N10: =InpActive!N29 -> 0.0909791282 | O10: =InpActive!O29 -> 0.0909791282 | P10: =InpActive!P29 -> 0
E11: =InpActive!E30 -> NES - Allocated innovation funding - Real | F11: =InpActive!F30 -> 0 | G11: =InpActive!G30 -> £m | H11: =InpActive!H30 -> 11.785105 | I11: =InpActive!I30 -> 0 | J11: =InpActive!J30 -> 0 | K11: =InpActive!K30 -> 2.357021001 | L11: =InpActive!L30 -> 2.357021001 | M11: =InpActive!M30 -> 2.357021001 | N11: =InpActive!N30 -> 2.357021001 | O11: =InpActive!O30 -> 2.357021001 | P11: =InpActive!P30 -> 0
E12: =InpActive!E31 -> NWT - Allocated innovation funding - Real | F12: =InpActive!F31 -> 0 | G12: =InpActive!G31 -> £m | H12: =InpActive!H31 -> 29.37006115 | I12: =InpActive!I31 -> 0 | J12: =InpActive!J31 -> 0 | K12: =InpActive!K31 -> 5.874012231 | L12: =InpActive!L31 -> 5.874012231 | M12: =InpActive!M31 -> 5.874012231 | N12: =InpActive!N31 -> 5.874012231 | O12: =InpActive!O31 -> 5.874012231 | P12: =InpActive!P31 -> 0
E13: =InpActive!E32 -> SRN - Allocated innovation funding - Real | F13: =InpActive!F32 -> 0 | G13: =InpActive!G32 -> £m | H13: =InpActive!H32 -> 13.29778674 | I13: =InpActive!I32 -> 0 | J13: =InpActive!J32 -> 0 | K13: =InpActive!K32 -> 2.659557348 | L13: =InpActive!L32 -> 2.659557348 | M13: =InpActive!M32 -> 2.659557348 | N13: =InpActive!N32 -> 2.659557348 | O13: =InpActive!O32 -> 2.659557348 | P13: =InpActive!P32 -> 0
E14: =InpActive!E33 -> SVE - Allocated innovation funding - Real | F14: =InpActive!F33 -> 0 | G14: =InpActive!G33 -> £m | H14: =InpActive!H33 -> 28.3821074 | I14: =InpActive!I33 -> 0 | J14: =InpActive!J33 -> 0 | K14: =InpActive!K33 -> 5.676421481 | L14: =InpActive!L33 -> 5.676421481 | M14: =InpActive!M33 -> 5.676421481 | N14: =InpActive!N33 -> 5.676421481 | O14: =InpActive!O33 -> 5.676421481 | P14: =InpActive!P33 -> 0
E15: =InpActive!E34 -> SWB - Allocated innovation funding - Real | F15: =InpActive!F34 -> 0 | G15: =InpActive!G34 -> £m | H15: =InpActive!H34 -> 8.82064115 | I15: =InpActive!I34 -> 0 | J15: =InpActive!J34 -> 0 | K15: =InpActive!K34 -> 1.76412823 | L15: =InpActive!L34 -> 1.76412823 | M15: =InpActive!M34 -> 1.76412823 | N15: =InpActive!N34 -> 1.76412823 | O15: =InpActive!O34 -> 1.76412823 | P15: =InpActive!P34 -> 0
E16: =InpActive!E35 -> TMS - Allocated innovation funding - Real | F16: =InpActive!F35 -> 0 | G16: =InpActive!G35 -> £m | H16: =InpActive!H35 -> 34.32930907 | I16: =InpActive!I35 -> 0 | J16: =InpActive!J35 -> 0 | K16: =InpActive!K35 -> 6.865861815 | L16: =InpActive!L35 -> 6.865861815 | M16: =InpActive!M35 -> 6.865861815 | N16: =InpActive!N35 -> 6.865861815 | O16: =InpActive!O35 -> 6.865861815 | P16: =InpActive!P35 -> 0
E17: =InpActive!E36 -> WSH - Allocated innovation funding - Real | F17: =InpActive!F36 -> 0 | G17: =InpActive!G36 -> £m | H17: =InpActive!H36 -> 12.35773469 | I17: =InpActive!I36 -> 0 | J17: =InpActive!J36 -> 0 | K17: =InpActive!K36 -> 2.471546938 | L17: =InpActive!L36 -> 2.471546938 | M17: =InpActive!M36 -> 2.471546938 | N17: =InpActive!N36 -> 2.471546938 | O17: =InpActive!O36 -> 2.471546938 | P17: =InpActive!P36 -> 0
E18: =InpActive!E37 -> WSX - Allocated innovation funding - Real | F18: =InpActive!F37 -> 0 | G18: =InpActive!G37 -> £m | H18: =InpActive!H37 -> 8.260459208 | I18: =InpActive!I37 -> 0 | J18: =InpActive!J37 -> 0 | K18: =InpActive!K37 -> 1.652091842 | L18: =InpActive!L37 -> 1.652091842 | M18: =InpActive!M37 -> 1.652091842 | N18: =InpActive!N37 -> 1.652091842 | O18: =InpActive!O37 -> 1.652091842 | P18: =InpActive!P37 -> 0
E19: =InpActive!E38 -> YKY - Allocated innovation funding - Real | F19: =InpActive!F38 -> 0 | G19: =InpActive!G38 -> £m | H19: =InpActive!H38 -> 17.59261306 | I19: =InpActive!I38 -> 0 | J19: =InpActive!J38 -> 0 | K19: =InpActive!K38 -> 3.518522611 | L19: =InpActive!L38 -> 3.518522611 | M19: =InpActive!M38 -> 3.518522611 | N19: =InpActive!N38 -> 3.518522611 | O19: =InpActive!O38 -> 3.518522611 | P19: =InpActive!P38 -> 0
E20: =InpActive!E39 -> AFW - Allocated innovation funding - Real | F20: =InpActive!F39 -> 0 | G20: =InpActive!G39 -> £m | H20: =InpActive!H39 -> 4.843234773 | I20: =InpActive!I39 -> 0 | J20: =InpActive!J39 -> 0 | K20: =InpActive!K39 -> 0.9686469547 | L20: =InpActive!L39 -> 0.9686469547 | M20: =InpActive!M39 -> 0.9686469547 | N20: =InpActive!N39 -> 0.9686469547 | O20: =InpActive!O39 -> 0.9686469547 | P20: =InpActive!P39 -> 0
E21: =InpActive!E40 -> BRL - Allocated innovation funding - Real | F21: =InpActive!F40 -> 0 | G21: =InpActive!G40 -> £m | H21: =InpActive!H40 -> 1.891226929 | I21: =InpActive!I40 -> 0 | J21: =InpActive!J40 -> 0 | K21: =InpActive!K40 -> 0.3782453859 | L21: =InpActive!L40 -> 0.3782453859 | M21: =InpActive!M40 -> 0.3782453859 | N21: =InpActive!N40 -> 0.3782453859 | O21: =InpActive!O40 -> 0.3782453859 | P21: =InpActive!P40 -> 0
E22: =InpActive!E41 -> PRT - Allocated innovation funding - Real | F22: =InpActive!F41 -> 0 | G22: =InpActive!G41 -> £m | H22: =InpActive!H41 -> 0.6495123432 | I22: =InpActive!I41 -> 0 | J22: =InpActive!J41 -> 0 | K22: =InpActive!K41 -> 0.1299024686 | L22: =InpActive!L41 -> 0.1299024686 | M22: =InpActive!M41 -> 0.1299024686 | N22: =InpActive!N41 -> 0.1299024686 | O22: =InpActive!O41 -> 0.1299024686 | P22: =InpActive!P41 -> 0
E23: =InpActive!E42 -> SES - Allocated innovation funding - Real | F23: =InpActive!F42 -> 0 | G23: =InpActive!G42 -> £m | H23: =InpActive!H42 -> 0.9840540389 | I23: =InpActive!I42 -> 0 | J23: =InpActive!J42 -> 0 | K23: =InpActive!K42 -> 0.1968108078 | L23: =InpActive!L42 -> 0.1968108078 | M23: =InpActive!M42 -> 0.1968108078 | N23: =InpActive!N42 -> 0.1968108078 | O23: =InpActive!O42 -> 0.1968108078 | P23: =InpActive!P42 -> 0
E24: =InpActive!E43 -> SEW - Allocated innovation funding - Real | F24: =InpActive!F43 -> 0 | G24: =InpActive!G43 -> £m | H24: =InpActive!H43 -> 3.951513618 | I24: =InpActive!I43 -> 0 | J24: =InpActive!J43 -> 0 | K24: =InpActive!K43 -> 0.7903027237 | L24: =InpActive!L43 -> 0.7903027237 | M24: =InpActive!M43 -> 0.7903027237 | N24: =InpActive!N43 -> 0.7903027237 | O24: =InpActive!O43 -> 0.7903027237 | P24: =InpActive!P43 -> 0
E25: =InpActive!E44 -> SSC - Allocated innovation funding - Real | F25: =InpActive!F44 -> 0 | G25: =InpActive!G44 -> £m | H25: =InpActive!H44 -> 2.042960997 | I25: =InpActive!I44 -> 0 | J25: =InpActive!J44 -> 0 | K25: =InpActive!K44 -> 0.4085921993 | L25: =InpActive!L44 -> 0.4085921993 | M25: =InpActive!M44 -> 0.4085921993 | N25: =InpActive!N44 -> 0.4085921993 | O25: =InpActive!O44 -> 0.4085921993 | P25: =InpActive!P44 -> 0
E26: Total Allocated Funding - Real | G26: £m | H26: =SUM(J26:P26) -> 200 | J26: =SUM(J9:J25) -> 0 | K26: =SUM(K9:K25) -> 40 | L26: 40 | M26: 40 | N26: 40 | O26: 40 | P26: 0
E28: =Indexation!E44 -> CPI(H): Fin year average - conversion from outturn to base year 2017-18 average - CALC | F28: =Indexation!F44 -> 0 | G28: =Indexation!G44 -> % | H28: =Indexation!H44 -> 0 | I28: =Indexation!I44 -> 0 | J28: =Indexation!J44 -> 1.038621462 | K28: =Indexation!K44 -> 1.04693747 | L28: =Indexation!L44 -> 1.085399008 | M28: =Indexation!M44 -> 1.180633296 | N28: =Indexation!N44 -> 1.233483688 | O28: =Indexation!O44 -> 1.244587597 | P28: =Indexation!P44 -> 1.269479349
D30: Allocated Funding - Nominal
E31: ANH - Allocated innovation funding - Nominal | G31: £m | H31: =SUM(J31:P31) -> 24.30706578 | J31: =J9 * J$28 -> 0 | K31: =K9 * K$28 -> 4.394370146 | L31: 4.555806947 | M31: 4.955539235 | N31: 5.177371189 | O31: 5.223978259 | P31: 0
E32: HDD - Allocated innovation funding - Nominal | G32: £m | H32: =SUM(J32:P32) -> 0.526863867 | J32: =J10 * J$28 -> 0 | K32: 0.0952494583 | L32: 0.09874865554 | M32: 0.107412988 | N32: 0.1122212706 | O32: 0.1132314946 | P32: 0
E33: NES - Allocated innovation funding - Nominal | G33: £m | H33: 13.64960539 | J33: =J11 * J$28 -> 0 | K33: 2.467653603 | L33: 2.558308257 | M33: 2.782777473 | N33: 2.907346956 | O33: 2.933519104 | P33: 0
E34: NWT - Allocated innovation funding - Nominal | G34: £m | H34: 34.01664601 | J34: =J12 * J$28 -> 0 | K34: 6.149723504 | L34: 6.375647051 | M34: 6.935054421 | N34: 7.245498269 | O34: 7.310722768 | P34: 0
E35: SRN - Allocated innovation funding - Nominal | G35: £m | H35: 15.4016058 | J35: =J13 * J$28 -> 0 | K35: 2.784390241 | L35: 2.886680908 | M35: 3.139961958 | N35: 3.280520605 | O35: 3.310052089 | P35: 0
E36: SVE - Allocated innovation funding - Nominal | G36: £m | H36: 32.87238987 | J36: =J14 * J$28 -> 0 | K36: 5.942858344 | L36: 6.161182247 | M36: 6.701772203 | N36: 7.001773302 | O36: 7.064803772 | P36: 0
E37: SWB - Allocated innovation funding - Nominal | G37: £m | H37: 10.21613901 | J37: =J15 * J$28 -> 0 | K37: 1.846931946 | L37: 1.914783032 | M37: 2.082788527 | N37: 2.176023395 | O37: 2.195612115 | P37: 0
E38: TMS - Allocated innovation funding - Nominal | G38: £m | H38: 39.76048768 | J38: =J16 * J$28 -> 0 | K38: 7.188127998 | L38: 7.452199606 | M38: 8.106065064 | N38: 8.468928552 | O38: 8.545166459 | P38: 0
E39: WSH - Allocated innovation funding - Nominal | G39: £m | H39: 14.3128298 | J39: =J17 * J$28 -> 0 | K39: 2.587555098 | L39: 2.682614596 | M39: 2.917990608 | N39: 3.048612832 | O39: 3.076056665 | P39: 0
E40: WSX - Allocated innovation funding - Nominal | G40: £m | H40: 9.567331689 | J40: =J18 * J$28 -> 0 | K40: 1.729636853 | L40: 1.793178847 | M40: 1.950514636 | N40: 2.037828337 | O40: 2.056173016 | P40: 0
E41: YKY - Allocated innovation funding - Nominal | G41: £m | H41: 20.37590891 | J41: =J19 * J$28 -> 0 | K41: 3.683673161 | L41: 3.819000954 | M41: 4.154084948 | N41: 4.340040246 | O41: 4.379109603 | P41: 0
E42: AFW - Allocated innovation funding - Nominal | G42: £m | H42: 5.609474287 | J42: =J20 * J$28 -> 0 | K42: 1.014112792 | L42: 1.051368444 | M42: 1.143616847 | N42: 1.194810218 | O42: 1.205565986 | P42: 0
E43: BRL - Allocated innovation funding - Nominal | G43: £m | H43: 2.19043456 | J43: =J21 * J$28 -> 0 | K43: 0.3959992674 | L43: 0.4105471668 | M43: 0.4465690967 | N43: 0.4665595135 | O43: 0.470759516 | P43: 0
E44: PRT - Allocated innovation funding - Nominal | G44: £m | H44: 0.7522705296 | J44: =J22 * J$28 -> 0 | K44: 0.1359997619 | L44: 0.1409960107 | M44: 0.1533671797 | N44: 0.1602325761 | O44: 0.1616750013 | P44: 0
E45: SES - Allocated innovation funding - Nominal | G45: £m | H45: 1.139739469 | J45: =J23 * J$28 -> 0 | K45: 0.2060486092 | L45: 0.2136182556 | M45: 0.2323613927 | N45: 0.242762921 | O45: 0.2449482904 | P45: 0
E46: SEW - Allocated innovation funding - Nominal | G46: £m | H46: 4.576675522 | J46: =J24 * J$28 -> 0 | K46: 0.8273975341 | L46: 0.8577937927 | M46: 0.9330577095 | N46: 0.9748255181 | O46: 0.983600968 | P46: 0
E47: SSC - Allocated innovation funding - Nominal | G47: £m | H47: 2.366174203 | J47: =J25 * J$28 -> 0 | K47: 0.4277704834 | L47: 0.443485568 | M47: 0.482397555 | N47: 0.5039918129 | O47: 0.5085287836 | P47: 0
E48: Total Allocated Funding - Nominal | G48: £m | H48: 231.6416424 | J48: =SUM(J31:J47) -> 0 | K48: =SUM(K31:K47) -> 41.8774988 | L48: =SUM(L31:L47) -> 43.41596034 | M48: =SUM(M31:M47) -> 47.22533184 | N48: =SUM(N31:N47) -> 49.33934751 | O48: =SUM(O31:O47) -> 49.78350389 | P48: =SUM(P31:P47) -> 0
D50: Proportion of Funding allocated
D52: Allocated Funding - Nominal
E53: =E31 -> ANH - Allocated innovation funding - Nominal | F53: =F31 -> 0 | G53: =G31 -> £m | H53: 24.30706578 | I53: 0 | J53: 0 | K53: 4.394370146 | L53: 4.555806947 | M53: 4.955539235 | N53: 5.177371189 | O53: 5.223978259 | P53: 0
E54: =E32 -> HDD - Allocated innovation funding - Nominal | F54: 0 | G54: £m | H54: 0.526863867 | I54: 0 | J54: 0 | K54: 0.0952494583 | L54: 0.09874865554 | M54: 0.107412988 | N54: 0.1122212706 | O54: 0.1132314946 | P54: 0
E55: =E33 -> NES - Allocated innovation funding - Nominal | F55: 0 | G55: £m | H55: 13.64960539 | I55: 0 | J55: 0 | K55: 2.467653603 | L55: 2.558308257 | M55: 2.782777473 | N55: 2.907346956 | O55: 2.933519104 | P55: 0
E56: =E34 -> NWT - Allocated innovation funding - Nominal | F56: 0 | G56: £m | H56: 34.01664601 | I56: 0 | J56: 0 | K56: 6.149723504 | L56: 6.375647051 | M56: 6.935054421 | N56: 7.245498269 | O56: 7.310722768 | P56: 0
E57: =E35 -> SRN - Allocated innovation funding - Nominal | F57: 0 | G57: £m | H57: 15.4016058 | I57: 0 | J57: 0 | K57: 2.784390241 | L57: 2.886680908 | M57: 3.139961958 | N57: 3.280520605 | O57: 3.310052089 | P57: 0
E58: =E36 -> SVE - Allocated innovation funding - Nominal | F58: 0 | G58: £m | H58: 32.87238987 | I58: 0 | J58: 0 | K58: 5.942858344 | L58: 6.161182247 | M58: 6.701772203 | N58: 7.001773302 | O58: 7.064803772 | P58: 0
E59: =E37 -> SWB - Allocated innovation funding - Nominal | F59: 0 | G59: £m | H59: 10.21613901 | I59: 0 | J59: 0 | K59: 1.846931946 | L59: 1.914783032 | M59: 2.082788527 | N59: 2.176023395 | O59: 2.195612115 | P59: 0
E60: =E38 -> TMS - Allocated innovation funding - Nominal | F60: 0 | G60: £m | H60: 39.76048768 | I60: 0 | J60: 0 | K60: 7.188127998 | L60: 7.452199606 | M60: 8.106065064 | N60: 8.468928552 | O60: 8.545166459 | P60: 0
E61: =E39 -> WSH - Allocated innovation funding - Nominal | F61: 0 | G61: £m | H61: 14.3128298 | I61: 0 | J61: 0 | K61: 2.587555098 | L61: 2.682614596 | M61: 2.917990608 | N61: 3.048612832 | O61: 3.076056665 | P61: 0
E62: =E40 -> WSX - Allocated innovation funding - Nominal | F62: 0 | G62: £m | H62: 9.567331689 | I62: 0 | J62: 0 | K62: 1.729636853 | L62: 1.793178847 | M62: 1.950514636 | N62: 2.037828337 | O62: 2.056173016 | P62: 0
E63: =E41 -> YKY - Allocated innovation funding - Nominal | F63: 0 | G63: £m | H63: 20.37590891 | I63: 0 | J63: 0 | K63: 3.683673161 | L63: 3.819000954 | M63: 4.154084948 | N63: 4.340040246 | O63: 4.379109603 | P63: 0
E64: =E42 -> AFW - Allocated innovation funding - Nominal | F64: 0 | G64: £m | H64: 5.609474287 | I64: 0 | J64: 0 | K64: 1.014112792 | L64: 1.051368444 | M64: 1.143616847 | N64: 1.194810218 | O64: 1.205565986 | P64: 0
E65: =E43 -> BRL - Allocated innovation funding - Nominal | F65: 0 | G65: £m | H65: 2.19043456 | I65: 0 | J65: 0 | K65: 0.3959992674 | L65: 0.4105471668 | M65: 0.4465690967 | N65: 0.4665595135 | O65: 0.470759516 | P65: 0
E66: =E44 -> PRT - Allocated innovation funding - Nominal | F66: 0 | G66: £m | H66: 0.7522705296 | I66: 0 | J66: 0 | K66: 0.1359997619 | L66: 0.1409960107 | M66: 0.1533671797 | N66: 0.1602325761 | O66: 0.1616750013 | P66: 0
E67: =E45 -> SES - Allocated innovation funding - Nominal | F67: 0 | G67: £m | H67: 1.139739469 | I67: 0 | J67: 0 | K67: 0.2060486092 | L67: 0.2136182556 | M67: 0.2323613927 | N67: 0.242762921 | O67: 0.2449482904 | P67: 0
E68: =E46 -> SEW - Allocated innovation funding - Nominal | F68: 0 | G68: £m | H68: 4.576675522 | I68: 0 | J68: 0 | K68: 0.8273975341 | L68: 0.8577937927 | M68: 0.9330577095 | N68: 0.9748255181 | O68: 0.983600968 | P68: 0
E69: =E47 -> SSC - Allocated innovation funding - Nominal | F69: 0 | G69: £m | H69: 2.366174203 | I69: 0 | J69: 0 | K69: 0.4277704834 | L69: 0.443485568 | M69: 0.482397555 | N69: 0.5039918129 | O69: 0.5085287836 | P69: 0
E70: Total Allocated Funding - Nominal | G70: £m | H70: =SUM(J70:P70) -> 231.6416424 | J70: =SUM(J53:J69) -> 0 | K70: 41.8774988 | L70: 43.41596034 | M70: 47.22533184 | N70: 49.33934751 | O70: 49.78350389 | P70: 0
E72: ANH - Proportion of Funding allocated | F72: =IF( $H$70 = 0, 0,H53 / $H$70) -> 0.1049339209 | G72: %
E73: HDD - Proportion of Funding allocated | F73: 0.002274478205 | G73: %
E74: NES - Proportion of Funding allocated | F74: 0.05892552502 | G74: %
E75: NWT - Proportion of Funding allocated | F75: 0.1468503058 | G75: %
E76: SRN - Proportion of Funding allocated | F76: 0.0664889337 | G76: %
E77: SVE - Proportion of Funding allocated | F77: 0.141910537 | G77: %
E78: SWB - Proportion of Funding allocated | F78: 0.04410320575 | G78: %
E79: TMS - Proportion of Funding allocated | F79: 0.1716465454 | G79: %
E80: WSH - Proportion of Funding allocated | F80: 0.06178867345 | G80: %
E81: WSX - Proportion of Funding allocated | F81: 0.04130229604 | G81: %
E82: YKY - Proportion of Funding allocated | F82: 0.08796306529 | G82: %
E83: AFW - Proportion of Funding allocated | F83: 0.02421617387 | G83: %
E84: BRL - Proportion of Funding allocated | F84: 0.009456134647 | G84: %
E85: PRT - Proportion of Funding allocated | F85: 0.003247561716 | G85: %
E86: SES - Proportion of Funding allocated | F86: 0.004920270194 | G86: %
E87: SEW - Proportion of Funding allocated | F87: 0.01975756809 | G87: %
E88: SSC - Proportion of Funding allocated | F88: 0.01021480498 | G88: %
E89: Total Allocated | F89: =SUM(F72:F88) -> 1 | G89: %
E90: Allocated funding proportion check | F90: =IF(OR(F89=1,F89=0), 0, 1) -> 0 | G90: check
D92: Total Funding transferred to winning bids
E93: =InpActive!E47 -> ANH - Total Funding transferred to winning bids - Nominal | F93: =InpActive!F47 -> 0 | G93: =InpActive!G47 -> £m | H93: =InpActive!H47 -> 0 | I93: =InpActive!I47 -> 0 | J93: =InpActive!J47 -> 0 | K93: =InpActive!K47 -> 0 | L93: =InpActive!L47 -> 0 | M93: =InpActive!M47 -> 0 | N93: =InpActive!N47 -> 0 | O93: =InpActive!O47 -> 0 | P93: =InpActive!P47 -> 0
E94: =InpActive!E48 -> HDD - Total Funding transferred to winning bids - Nominal | F94: =InpActive!F48 -> 0 | G94: =InpActive!G48 -> £m | H94: =InpActive!H48 -> 0 | I94: =InpActive!I48 -> 0 | J94: =InpActive!J48 -> 0 | K94: =InpActive!K48 -> 0 | L94: =InpActive!L48 -> 0 | M94: =InpActive!M48 -> 0 | N94: =InpActive!N48 -> 0 | O94: =InpActive!O48 -> 0 | P94: =InpActive!P48 -> 0
E95: =InpActive!E49 -> NES - Total Funding transferred to winning bids - Nominal | F95: =InpActive!F49 -> 0 | G95: =InpActive!G49 -> £m | H95: =InpActive!H49 -> 0 | I95: =InpActive!I49 -> 0 | J95: =InpActive!J49 -> 0 | K95: =InpActive!K49 -> 0 | L95: =InpActive!L49 -> 0 | M95: =InpActive!M49 -> 0 | N95: =InpActive!N49 -> 0 | O95: =InpActive!O49 -> 0 | P95: =InpActive!P49 -> 0
E96: =InpActive!E50 -> NWT - Total Funding transferred to winning bids - Nominal | F96: =InpActive!F50 -> 0 | G96: =InpActive!G50 -> £m | H96: =InpActive!H50 -> 0 | I96: =InpActive!I50 -> 0 | J96: =InpActive!J50 -> 0 | K96: =InpActive!K50 -> 0 | L96: =InpActive!L50 -> 0 | M96: =InpActive!M50 -> 0 | N96: =InpActive!N50 -> 0 | O96: =InpActive!O50 -> 0 | P96: =InpActive!P50 -> 0
E97: =InpActive!E51 -> SRN - Total Funding transferred to winning bids - Nominal | F97: =InpActive!F51 -> 0 | G97: =InpActive!G51 -> £m | H97: =InpActive!H51 -> 0 | I97: =InpActive!I51 -> 0 | J97: =InpActive!J51 -> 0 | K97: =InpActive!K51 -> 0 | L97: =InpActive!L51 -> 0 | M97: =InpActive!M51 -> 0 | N97: =InpActive!N51 -> 0 | O97: =InpActive!O51 -> 0 | P97: =InpActive!P51 -> 0
E98: =InpActive!E52 -> SVE - Total Funding transferred to winning bids - Nominal | F98: =InpActive!F52 -> 0 | G98: =InpActive!G52 -> £m | H98: =InpActive!H52 -> 0 | I98: =InpActive!I52 -> 0 | J98: =InpActive!J52 -> 0 | K98: =InpActive!K52 -> 0 | L98: =InpActive!L52 -> 0 | M98: =InpActive!M52 -> 0 | N98: =InpActive!N52 -> 0 | O98: =InpActive!O52 -> 0 | P98: =InpActive!P52 -> 0
E99: =InpActive!E53 -> SWB - Total Funding transferred to winning bids - Nominal | F99: =InpActive!F53 -> 0 | G99: =InpActive!G53 -> £m | H99: =InpActive!H53 -> 0 | I99: =InpActive!I53 -> 0 | J99: =InpActive!J53 -> 0 | K99: =InpActive!K53 -> 0 | L99: =InpActive!L53 -> 0 | M99: =InpActive!M53 -> 0 | N99: =InpActive!N53 -> 0 | O99: =InpActive!O53 -> 0 | P99: =InpActive!P53 -> 0
E100: =InpActive!E54 -> TMS - Total Funding transferred to winning bids - Nominal | F100: =InpActive!F54 -> 0 | G100: =InpActive!G54 -> £m | H100: =InpActive!H54 -> 0 | I100: =InpActive!I54 -> 0 | J100: =InpActive!J54 -> 0 | K100: =InpActive!K54 -> 0 | L100: =InpActive!L54 -> 0 | M100: =InpActive!M54 -> 0 | N100: =InpActive!N54 -> 0 | O100: =InpActive!O54 -> 0 | P100: =InpActive!P54 -> 0
E101: =InpActive!E55 -> WSH - Total Funding transferred to winning bids - Nominal | F101: =InpActive!F55 -> 0 | G101: =InpActive!G55 -> £m | H101: =InpActive!H55 -> 0 | I101: =InpActive!I55 -> 0 | J101: =InpActive!J55 -> 0 | K101: =InpActive!K55 -> 0 | L101: =InpActive!L55 -> 0 | M101: =InpActive!M55 -> 0 | N101: =InpActive!N55 -> 0 | O101: =InpActive!O55 -> 0 | P101: =InpActive!P55 -> 0
E102: =InpActive!E56 -> WSX - Total Funding transferred to winning bids - Nominal | F102: =InpActive!F56 -> 0 | G102: =InpActive!G56 -> £m | H102: =InpActive!H56 -> 0 | I102: =InpActive!I56 -> 0 | J102: =InpActive!J56 -> 0 | K102: =InpActive!K56 -> 0 | L102: =InpActive!L56 -> 0 | M102: =InpActive!M56 -> 0 | N102: =InpActive!N56 -> 0 | O102: =InpActive!O56 -> 0 | P102: =InpActive!P56 -> 0
E103: =InpActive!E57 -> YKY - Total Funding transferred to winning bids - Nominal | F103: =InpActive!F57 -> 0 | G103: =InpActive!G57 -> £m | H103: =InpActive!H57 -> 0 | I103: =InpActive!I57 -> 0 | J103: =InpActive!J57 -> 0 | K103: =InpActive!K57 -> 0 | L103: =InpActive!L57 -> 0 | M103: =InpActive!M57 -> 0 | N103: =InpActive!N57 -> 0 | O103: =InpActive!O57 -> 0 | P103: =InpActive!P57 -> 0
E104: =InpActive!E58 -> AFW - Total Funding transferred to winning bids - Nominal | F104: =InpActive!F58 -> 0 | G104: =InpActive!G58 -> £m | H104: =InpActive!H58 -> 0 | I104: =InpActive!I58 -> 0 | J104: =InpActive!J58 -> 0 | K104: =InpActive!K58 -> 0 | L104: =InpActive!L58 -> 0 | M104: =InpActive!M58 -> 0 | N104: =InpActive!N58 -> 0 | O104: =InpActive!O58 -> 0 | P104: =InpActive!P58 -> 0
E105: =InpActive!E59 -> BRL - Total Funding transferred to winning bids - Nominal | F105: =InpActive!F59 -> 0 | G105: =InpActive!G59 -> £m | H105: =InpActive!H59 -> 0 | I105: =InpActive!I59 -> 0 | J105: =InpActive!J59 -> 0 | K105: =InpActive!K59 -> 0 | L105: =InpActive!L59 -> 0 | M105: =InpActive!M59 -> 0 | N105: =InpActive!N59 -> 0 | O105: =InpActive!O59 -> 0 | P105: =InpActive!P59 -> 0
E106: =InpActive!E60 -> PRT - Total Funding transferred to winning bids - Nominal | F106: =InpActive!F60 -> 0 | G106: =InpActive!G60 -> £m | H106: =InpActive!H60 -> 0 | I106: =InpActive!I60 -> 0 | J106: =InpActive!J60 -> 0 | K106: =InpActive!K60 -> 0 | L106: =InpActive!L60 -> 0 | M106: =InpActive!M60 -> 0 | N106: =InpActive!N60 -> 0 | O106: =InpActive!O60 -> 0 | P106: =InpActive!P60 -> 0
E107: =InpActive!E61 -> SES - Total Funding transferred to winning bids - Nominal | F107: =InpActive!F61 -> 0 | G107: =InpActive!G61 -> £m | H107: =InpActive!H61 -> 0 | I107: =InpActive!I61 -> 0 | J107: =InpActive!J61 -> 0 | K107: =InpActive!K61 -> 0 | L107: =InpActive!L61 -> 0 | M107: =InpActive!M61 -> 0 | N107: =InpActive!N61 -> 0 | O107: =InpActive!O61 -> 0 | P107: =InpActive!P61 -> 0
E108: =InpActive!E62 -> SEW - Total Funding transferred to winning bids - Nominal | F108: =InpActive!F62 -> 0 | G108: =InpActive!G62 -> £m | H108: =InpActive!H62 -> 0 | I108: =InpActive!I62 -> 0 | J108: =InpActive!J62 -> 0 | K108: =InpActive!K62 -> 0 | L108: =InpActive!L62 -> 0 | M108: =InpActive!M62 -> 0 | N108: =InpActive!N62 -> 0 | O108: =InpActive!O62 -> 0 | P108: =InpActive!P62 -> 0
E109: =InpActive!E63 -> SSC - Total Funding transferred to winning bids - Nominal | F109: =InpActive!F63 -> 0 | G109: =InpActive!G63 -> £m | H109: =InpActive!H63 -> 0 | I109: =InpActive!I63 -> 0 | J109: =InpActive!J63 -> 0 | K109: =InpActive!K63 -> 0 | L109: =InpActive!L63 -> 0 | M109: =InpActive!M63 -> 0 | N109: =InpActive!N63 -> 0 | O109: =InpActive!O63 -> 0 | P109: =InpActive!P63 -> 0
E110: Total Transferred - Nominal | G110: £m | H110: =SUM(J110:P110) -> 0 | J110: =SUM(J93:J109) -> 0 | K110: =SUM(K93:K109) -> 0 | L110: =SUM(L93:L109) -> 0 | M110: =SUM(M93:M109) -> 0 | N110: =SUM(N93:N109) -> 0 | O110: =SUM(O93:O109) -> 0 | P110: =SUM(P93:P109) -> 0
D112: Bids Accepted
E113: =InpActive!E67 -> ANH - Bids Accepted & Funding Awarded - Nominal | F113: =InpActive!F67 -> 0 | G113: =InpActive!G67 -> £m | H113: =InpActive!H67 -> 0 | I113: =InpActive!I67 -> 0 | J113: =InpActive!J67 -> 0 | K113: =InpActive!K67 -> 0 | L113: =InpActive!L67 -> 0 | M113: =InpActive!M67 -> 0 | N113: =InpActive!N67 -> 0 | O113: =InpActive!O67 -> 0 | P113: =InpActive!P67 -> 0
E114: =InpActive!E68 -> HDD - Bids Accepted & Funding Awarded - Nominal | F114: =InpActive!F68 -> 0 | G114: =InpActive!G68 -> £m | H114: =InpActive!H68 -> 0 | I114: =InpActive!I68 -> 0 | J114: =InpActive!J68 -> 0 | K114: =InpActive!K68 -> 0 | L114: =InpActive!L68 -> 0 | M114: =InpActive!M68 -> 0 | N114: =InpActive!N68 -> 0 | O114: =InpActive!O68 -> 0 | P114: =InpActive!P68 -> 0
E115: =InpActive!E69 -> NES - Bids Accepted & Funding Awarded - Nominal | F115: =InpActive!F69 -> 0 | G115: =InpActive!G69 -> £m | H115: =InpActive!H69 -> 0 | I115: =InpActive!I69 -> 0 | J115: =InpActive!J69 -> 0 | K115: =InpActive!K69 -> 0 | L115: =InpActive!L69 -> 0 | M115: =InpActive!M69 -> 0 | N115: =InpActive!N69 -> 0 | O115: =InpActive!O69 -> 0 | P115: =InpActive!P69 -> 0
E116: =InpActive!E70 -> NWT - Bids Accepted & Funding Awarded - Nominal | F116: =InpActive!F70 -> 0 | G116: =InpActive!G70 -> £m | H116: =InpActive!H70 -> 0 | I116: =InpActive!I70 -> 0 | J116: =InpActive!J70 -> 0 | K116: =InpActive!K70 -> 0 | L116: =InpActive!L70 -> 0 | M116: =InpActive!M70 -> 0 | N116: =InpActive!N70 -> 0 | O116: =InpActive!O70 -> 0 | P116: =InpActive!P70 -> 0
E117: =InpActive!E71 -> SRN - Bids Accepted & Funding Awarded - Nominal | F117: =InpActive!F71 -> 0 | G117: =InpActive!G71 -> £m | H117: =InpActive!H71 -> 0 | I117: =InpActive!I71 -> 0 | J117: =InpActive!J71 -> 0 | K117: =InpActive!K71 -> 0 | L117: =InpActive!L71 -> 0 | M117: =InpActive!M71 -> 0 | N117: =InpActive!N71 -> 0 | O117: =InpActive!O71 -> 0 | P117: =InpActive!P71 -> 0
E118: =InpActive!E72 -> SVE - Bids Accepted & Funding Awarded - Nominal | F118: =InpActive!F72 -> 0 | G118: =InpActive!G72 -> £m | H118: =InpActive!H72 -> 0 | I118: =InpActive!I72 -> 0 | J118: =InpActive!J72 -> 0 | K118: =InpActive!K72 -> 0 | L118: =InpActive!L72 -> 0 | M118: =InpActive!M72 -> 0 | N118: =InpActive!N72 -> 0 | O118: =InpActive!O72 -> 0 | P118: =InpActive!P72 -> 0
E119: =InpActive!E73 -> SWB - Bids Accepted & Funding Awarded - Nominal | F119: =InpActive!F73 -> 0 | G119: =InpActive!G73 -> £m | H119: =InpActive!H73 -> 0 | I119: =InpActive!I73 -> 0 | J119: =InpActive!J73 -> 0 | K119: =InpActive!K73 -> 0 | L119: =InpActive!L73 -> 0 | M119: =InpActive!M73 -> 0 | N119: =InpActive!N73 -> 0 | O119: =InpActive!O73 -> 0 | P119: =InpActive!P73 -> 0
E120: =InpActive!E74 -> TMS - Bids Accepted & Funding Awarded - Nominal | F120: =InpActive!F74 -> 0 | G120: =InpActive!G74 -> £m | H120: =InpActive!H74 -> 0 | I120: =InpActive!I74 -> 0 | J120: =InpActive!J74 -> 0 | K120: =InpActive!K74 -> 0 | L120: =InpActive!L74 -> 0 | M120: =InpActive!M74 -> 0 | N120: =InpActive!N74 -> 0 | O120: =InpActive!O74 -> 0 | P120: =InpActive!P74 -> 0
E121: =InpActive!E75 -> WSH - Bids Accepted & Funding Awarded - Nominal | F121: =InpActive!F75 -> 0 | G121: =InpActive!G75 -> £m | H121: =InpActive!H75 -> 0 | I121: =InpActive!I75 -> 0 | J121: =InpActive!J75 -> 0 | K121: =InpActive!K75 -> 0 | L121: =InpActive!L75 -> 0 | M121: =InpActive!M75 -> 0 | N121: =InpActive!N75 -> 0 | O121: =InpActive!O75 -> 0 | P121: =InpActive!P75 -> 0
E122: =InpActive!E76 -> WSX - Bids Accepted & Funding Awarded - Nominal | F122: =InpActive!F76 -> 0 | G122: =InpActive!G76 -> £m | H122: =InpActive!H76 -> 0 | I122: =InpActive!I76 -> 0 | J122: =InpActive!J76 -> 0 | K122: =InpActive!K76 -> 0 | L122: =InpActive!L76 -> 0 | M122: =InpActive!M76 -> 0 | N122: =InpActive!N76 -> 0 | O122: =InpActive!O76 -> 0 | P122: =InpActive!P76 -> 0
E123: =InpActive!E77 -> YKY - Bids Accepted & Funding Awarded - Nominal | F123: =InpActive!F77 -> 0 | G123: =InpActive!G77 -> £m | H123: =InpActive!H77 -> 0 | I123: =InpActive!I77 -> 0 | J123: =InpActive!J77 -> 0 | K123: =InpActive!K77 -> 0 | L123: =InpActive!L77 -> 0 | M123: =InpActive!M77 -> 0 | N123: =InpActive!N77 -> 0 | O123: =InpActive!O77 -> 0 | P123: =InpActive!P77 -> 0
E124: =InpActive!E78 -> AFW - Bids Accepted & Funding Awarded - Nominal | F124: =InpActive!F78 -> 0 | G124: =InpActive!G78 -> £m | H124: =InpActive!H78 -> 0 | I124: =InpActive!I78 -> 0 | J124: =InpActive!J78 -> 0 | K124: =InpActive!K78 -> 0 | L124: =InpActive!L78 -> 0 | M124: =InpActive!M78 -> 0 | N124: =InpActive!N78 -> 0 | O124: =InpActive!O78 -> 0 | P124: =InpActive!P78 -> 0
E125: =InpActive!E79 -> BRL - Bids Accepted & Funding Awarded - Nominal | F125: =InpActive!F79 -> 0 | G125: =InpActive!G79 -> £m | H125: =InpActive!H79 -> 0 | I125: =InpActive!I79 -> 0 | J125: =InpActive!J79 -> 0 | K125: =InpActive!K79 -> 0 | L125: =InpActive!L79 -> 0 | M125: =InpActive!M79 -> 0 | N125: =InpActive!N79 -> 0 | O125: =InpActive!O79 -> 0 | P125: =InpActive!P79 -> 0
E126: =InpActive!E80 -> PRT - Bids Accepted & Funding Awarded - Nominal | F126: =InpActive!F80 -> 0 | G126: =InpActive!G80 -> £m | H126: =InpActive!H80 -> 0 | I126: =InpActive!I80 -> 0 | J126: =InpActive!J80 -> 0 | K126: =InpActive!K80 -> 0 | L126: =InpActive!L80 -> 0 | M126: =InpActive!M80 -> 0 | N126: =InpActive!N80 -> 0 | O126: =InpActive!O80 -> 0 | P126: =InpActive!P80 -> 0
E127: =InpActive!E81 -> SES - Bids Accepted & Funding Awarded - Nominal | F127: =InpActive!F81 -> 0 | G127: =InpActive!G81 -> £m | H127: =InpActive!H81 -> 0 | I127: =InpActive!I81 -> 0 | J127: =InpActive!J81 -> 0 | K127: =InpActive!K81 -> 0 | L127: =InpActive!L81 -> 0 | M127: =InpActive!M81 -> 0 | N127: =InpActive!N81 -> 0 | O127: =InpActive!O81 -> 0 | P127: =InpActive!P81 -> 0
E128: =InpActive!E82 -> SEW - Bids Accepted & Funding Awarded - Nominal | F128: =InpActive!F82 -> 0 | G128: =InpActive!G82 -> £m | H128: =InpActive!H82 -> 0 | I128: =InpActive!I82 -> 0 | J128: =InpActive!J82 -> 0 | K128: =InpActive!K82 -> 0 | L128: =InpActive!L82 -> 0 | M128: =InpActive!M82 -> 0 | N128: =InpActive!N82 -> 0 | O128: =InpActive!O82 -> 0 | P128: =InpActive!P82 -> 0
E129: =InpActive!E83 -> SSC - Bids Accepted & Funding Awarded - Nominal | F129: =InpActive!F83 -> 0 | G129: =InpActive!G83 -> £m | H129: =InpActive!H83 -> 0 | I129: =InpActive!I83 -> 0 | J129: =InpActive!J83 -> 0 | K129: =InpActive!K83 -> 0 | L129: =InpActive!L83 -> 0 | M129: =InpActive!M83 -> 0 | N129: =InpActive!N83 -> 0 | O129: =InpActive!O83 -> 0 | P129: =InpActive!P83 -> 0
E130: =InpActive!E84 -> NAV - Bids Accepted & Funding Awarded - Nominal | F130: =InpActive!F84 -> 0 | G130: =InpActive!G84 -> £m | H130: =InpActive!H84 -> 0 | I130: =InpActive!I84 -> 0 | J130: =InpActive!J84 -> 0 | K130: =InpActive!K84 -> 0 | L130: =InpActive!L84 -> 0 | M130: =InpActive!M84 -> 0 | N130: =InpActive!N84 -> 0 | O130: =InpActive!O84 -> 0 | P130: =InpActive!P84 -> 0
E131: Total Bids accepted - Nominal | G131: £m | H131: =SUM(J131:P131) -> 0 | J131: =SUM(J113:J130) -> 0 | K131: =SUM(K113:K130) -> 0 | L131: 0 | M131: 0 | N131: 0 | O131: 0 | P131: 0
D133: Total spend to date
D135: Project Costs
E136: =InpActive!E92 -> ANH - Expenditure on innovation spend to date - Nominal | F136: =InpActive!F92 -> 0 | G136: =InpActive!G92 -> £m | H136: =InpActive!H92 -> 0 | I136: =InpActive!I92 -> 0 | J136: =InpActive!J92 -> 0 | K136: =InpActive!K92 -> 0 | L136: =InpActive!L92 -> 0 | M136: =InpActive!M92 -> 0 | N136: =InpActive!N92 -> 0 | O136: =InpActive!O92 -> 0 | P136: =InpActive!P92 -> 0
E137: =InpActive!E93 -> HDD - Expenditure on innovation spend to date - Nominal | F137: =InpActive!F93 -> 0 | G137: =InpActive!G93 -> £m | H137: =InpActive!H93 -> 0 | I137: =InpActive!I93 -> 0 | J137: =InpActive!J93 -> 0 | K137: =InpActive!K93 -> 0 | L137: =InpActive!L93 -> 0 | M137: =InpActive!M93 -> 0 | N137: =InpActive!N93 -> 0 | O137: =InpActive!O93 -> 0 | P137: =InpActive!P93 -> 0
E138: =InpActive!E94 -> NES - Expenditure on innovation spend to date - Nominal | F138: =InpActive!F94 -> 0 | G138: =InpActive!G94 -> £m | H138: =InpActive!H94 -> 0 | I138: =InpActive!I94 -> 0 | J138: =InpActive!J94 -> 0 | K138: =InpActive!K94 -> 0 | L138: =InpActive!L94 -> 0 | M138: =InpActive!M94 -> 0 | N138: =InpActive!N94 -> 0 | O138: =InpActive!O94 -> 0 | P138: =InpActive!P94 -> 0
E139: =InpActive!E95 -> NWT - Expenditure on innovation spend to date - Nominal | F139: =InpActive!F95 -> 0 | G139: =InpActive!G95 -> £m | H139: =InpActive!H95 -> 0 | I139: =InpActive!I95 -> 0 | J139: =InpActive!J95 -> 0 | K139: =InpActive!K95 -> 0 | L139: =InpActive!L95 -> 0 | M139: =InpActive!M95 -> 0 | N139: =InpActive!N95 -> 0 | O139: =InpActive!O95 -> 0 | P139: =InpActive!P95 -> 0
E140: =InpActive!E96 -> SRN - Expenditure on innovation spend to date - Nominal | F140: =InpActive!F96 -> 0 | G140: =InpActive!G96 -> £m | H140: =InpActive!H96 -> 0 | I140: =InpActive!I96 -> 0 | J140: =InpActive!J96 -> 0 | K140: =InpActive!K96 -> 0 | L140: =InpActive!L96 -> 0 | M140: =InpActive!M96 -> 0 | N140: =InpActive!N96 -> 0 | O140: =InpActive!O96 -> 0 | P140: =InpActive!P96 -> 0
E141: =InpActive!E97 -> SVE - Expenditure on innovation spend to date - Nominal | F141: =InpActive!F97 -> 0 | G141: =InpActive!G97 -> £m | H141: =InpActive!H97 -> 0 | I141: =InpActive!I97 -> 0 | J141: =InpActive!J97 -> 0 | K141: =InpActive!K97 -> 0 | L141: =InpActive!L97 -> 0 | M141: =InpActive!M97 -> 0 | N141: =InpActive!N97 -> 0 | O141: =InpActive!O97 -> 0 | P141: =InpActive!P97 -> 0
E142: =InpActive!E98 -> SWB - Expenditure on innovation spend to date - Nominal | F142: =InpActive!F98 -> 0 | G142: =InpActive!G98 -> £m | H142: =InpActive!H98 -> 0 | I142: =InpActive!I98 -> 0 | J142: =InpActive!J98 -> 0 | K142: =InpActive!K98 -> 0 | L142: =InpActive!L98 -> 0 | M142: =InpActive!M98 -> 0 | N142: =InpActive!N98 -> 0 | O142: =InpActive!O98 -> 0 | P142: =InpActive!P98 -> 0
E143: =InpActive!E99 -> TMS - Expenditure on innovation spend to date - Nominal | F143: =InpActive!F99 -> 0 | G143: =InpActive!G99 -> £m | H143: =InpActive!H99 -> 0 | I143: =InpActive!I99 -> 0 | J143: =InpActive!J99 -> 0 | K143: =InpActive!K99 -> 0 | L143: =InpActive!L99 -> 0 | M143: =InpActive!M99 -> 0 | N143: =InpActive!N99 -> 0 | O143: =InpActive!O99 -> 0 | P143: =InpActive!P99 -> 0
E144: =InpActive!E100 -> WSH - Expenditure on innovation spend to date - Nominal | F144: =InpActive!F100 -> 0 | G144: =InpActive!G100 -> £m | H144: =InpActive!H100 -> 0 | I144: =InpActive!I100 -> 0 | J144: =InpActive!J100 -> 0 | K144: =InpActive!K100 -> 0 | L144: =InpActive!L100 -> 0 | M144: =InpActive!M100 -> 0 | N144: =InpActive!N100 -> 0 | O144: =InpActive!O100 -> 0 | P144: =InpActive!P100 -> 0
E145: =InpActive!E101 -> WSX - Expenditure on innovation spend to date - Nominal | F145: =InpActive!F101 -> 0 | G145: =InpActive!G101 -> £m | H145: =InpActive!H101 -> 0 | I145: =InpActive!I101 -> 0 | J145: =InpActive!J101 -> 0 | K145: =InpActive!K101 -> 0 | L145: =InpActive!L101 -> 0 | M145: =InpActive!M101 -> 0 | N145: =InpActive!N101 -> 0 | O145: =InpActive!O101 -> 0 | P145: =InpActive!P101 -> 0
E146: =InpActive!E102 -> YKY - Expenditure on innovation spend to date - Nominal | F146: =InpActive!F102 -> 0 | G146: =InpActive!G102 -> £m | H146: =InpActive!H102 -> 0 | I146: =InpActive!I102 -> 0 | J146: =InpActive!J102 -> 0 | K146: =InpActive!K102 -> 0 | L146: =InpActive!L102 -> 0 | M146: =InpActive!M102 -> 0 | N146: =InpActive!N102 -> 0 | O146: =InpActive!O102 -> 0 | P146: =InpActive!P102 -> 0
E147: =InpActive!E103 -> AFW - Expenditure on innovation spend to date - Nominal | F147: =InpActive!F103 -> 0 | G147: =InpActive!G103 -> £m | H147: =InpActive!H103 -> 0 | I147: =InpActive!I103 -> 0 | J147: =InpActive!J103 -> 0 | K147: =InpActive!K103 -> 0 | L147: =InpActive!L103 -> 0 | M147: =InpActive!M103 -> 0 | N147: =InpActive!N103 -> 0 | O147: =InpActive!O103 -> 0 | P147: =InpActive!P103 -> 0
E148: =InpActive!E104 -> BRL - Expenditure on innovation spend to date - Nominal | F148: =InpActive!F104 -> 0 | G148: =InpActive!G104 -> £m | H148: =InpActive!H104 -> 0 | I148: =InpActive!I104 -> 0 | J148: =InpActive!J104 -> 0 | K148: =InpActive!K104 -> 0 | L148: =InpActive!L104 -> 0 | M148: =InpActive!M104 -> 0 | N148: =InpActive!N104 -> 0 | O148: =InpActive!O104 -> 0 | P148: =InpActive!P104 -> 0
E149: =InpActive!E105 -> PRT - Expenditure on innovation spend to date - Nominal | F149: =InpActive!F105 -> 0 | G149: =InpActive!G105 -> £m | H149: =InpActive!H105 -> 0 | I149: =InpActive!I105 -> 0 | J149: =InpActive!J105 -> 0 | K149: =InpActive!K105 -> 0 | L149: =InpActive!L105 -> 0 | M149: =InpActive!M105 -> 0 | N149: =InpActive!N105 -> 0 | O149: =InpActive!O105 -> 0 | P149: =InpActive!P105 -> 0
E150: =InpActive!E106 -> SES - Expenditure on innovation spend to date - Nominal | F150: =InpActive!F106 -> 0 | G150: =InpActive!G106 -> £m | H150: =InpActive!H106 -> 0 | I150: =InpActive!I106 -> 0 | J150: =InpActive!J106 -> 0 | K150: =InpActive!K106 -> 0 | L150: =InpActive!L106 -> 0 | M150: =InpActive!M106 -> 0 | N150: =InpActive!N106 -> 0 | O150: =InpActive!O106 -> 0 | P150: =InpActive!P106 -> 0
E151: =InpActive!E107 -> SEW - Expenditure on innovation spend to date - Nominal | F151: =InpActive!F107 -> 0 | G151: =InpActive!G107 -> £m | H151: =InpActive!H107 -> 0 | I151: =InpActive!I107 -> 0 | J151: =InpActive!J107 -> 0 | K151: =InpActive!K107 -> 0 | L151: =InpActive!L107 -> 0 | M151: =InpActive!M107 -> 0 | N151: =InpActive!N107 -> 0 | O151: =InpActive!O107 -> 0 | P151: =InpActive!P107 -> 0
E152: =InpActive!E108 -> SSC - Expenditure on innovation spend to date - Nominal | F152: =InpActive!F108 -> 0 | G152: =InpActive!G108 -> £m | H152: =InpActive!H108 -> 0 | I152: =InpActive!I108 -> 0 | J152: =InpActive!J108 -> 0 | K152: =InpActive!K108 -> 0 | L152: =InpActive!L108 -> 0 | M152: =InpActive!M108 -> 0 | N152: =InpActive!N108 -> 0 | O152: =InpActive!O108 -> 0 | P152: =InpActive!P108 -> 0
E153: =InpActive!E109 -> NAV - Expenditure on innovation spend to date - Nominal | F153: =InpActive!F109 -> 0 | G153: =InpActive!G109 -> £m | H153: =InpActive!H109 -> 0 | I153: =InpActive!I109 -> 0 | J153: =InpActive!J109 -> 0 | K153: =InpActive!K109 -> 0 | L153: =InpActive!L109 -> 0 | M153: =InpActive!M109 -> 0 | N153: =InpActive!N109 -> 0 | O153: =InpActive!O109 -> 0 | P153: =InpActive!P109 -> 0
D155: Admin Costs
E156: =InpActive!E112 -> ANH - Administrative charge for innovation fund - Nominal | F156: =InpActive!F112 -> 0 | G156: =InpActive!G112 -> £m | H156: =InpActive!H112 -> 0 | I156: =InpActive!I112 -> 0 | J156: =InpActive!J112 -> 0 | K156: =InpActive!K112 -> 0 | L156: =InpActive!L112 -> 0 | M156: =InpActive!M112 -> 0 | N156: =InpActive!N112 -> 0 | O156: =InpActive!O112 -> 0 | P156: =InpActive!P112 -> 0
E157: =InpActive!E113 -> HDD - Administrative charge for innovation fund - Nominal | F157: =InpActive!F113 -> 0 | G157: =InpActive!G113 -> £m | H157: =InpActive!H113 -> 0 | I157: =InpActive!I113 -> 0 | J157: =InpActive!J113 -> 0 | K157: =InpActive!K113 -> 0 | L157: =InpActive!L113 -> 0 | M157: =InpActive!M113 -> 0 | N157: =InpActive!N113 -> 0 | O157: =InpActive!O113 -> 0 | P157: =InpActive!P113 -> 0
E158: =InpActive!E114 -> NES - Administrative charge for innovation fund - Nominal | F158: =InpActive!F114 -> 0 | G158: =InpActive!G114 -> £m | H158: =InpActive!H114 -> 0 | I158: =InpActive!I114 -> 0 | J158: =InpActive!J114 -> 0 | K158: =InpActive!K114 -> 0 | L158: =InpActive!L114 -> 0 | M158: =InpActive!M114 -> 0 | N158: =InpActive!N114 -> 0 | O158: =InpActive!O114 -> 0 | P158: =InpActive!P114 -> 0
E159: =InpActive!E115 -> NWT - Administrative charge for innovation fund - Nominal | F159: =InpActive!F115 -> 0 | G159: =InpActive!G115 -> £m | H159: =InpActive!H115 -> 0 | I159: =InpActive!I115 -> 0 | J159: =InpActive!J115 -> 0 | K159: =InpActive!K115 -> 0 | L159: =InpActive!L115 -> 0 | M159: =InpActive!M115 -> 0 | N159: =InpActive!N115 -> 0 | O159: =InpActive!O115 -> 0 | P159: =InpActive!P115 -> 0
E160: =InpActive!E116 -> SRN - Administrative charge for innovation fund - Nominal | F160: =InpActive!F116 -> 0 | G160: =InpActive!G116 -> £m | H160: =InpActive!H116 -> 0 | I160: =InpActive!I116 -> 0 | J160: =InpActive!J116 -> 0 | K160: =InpActive!K116 -> 0 | L160: =InpActive!L116 -> 0 | M160: =InpActive!M116 -> 0 | N160: =InpActive!N116 -> 0 | O160: =InpActive!O116 -> 0 | P160: =InpActive!P116 -> 0
E161: =InpActive!E117 -> SVE - Administrative charge for innovation fund - Nominal | F161: =InpActive!F117 -> 0 | G161: =InpActive!G117 -> £m | H161: =InpActive!H117 -> 0 | I161: =InpActive!I117 -> 0 | J161: =InpActive!J117 -> 0 | K161: =InpActive!K117 -> 0 | L161: =InpActive!L117 -> 0 | M161: =InpActive!M117 -> 0 | N161: =InpActive!N117 -> 0 | O161: =InpActive!O117 -> 0 | P161: =InpActive!P117 -> 0
E162: =InpActive!E118 -> SWB - Administrative charge for innovation fund - Nominal | F162: =InpActive!F118 -> 0 | G162: =InpActive!G118 -> £m | H162: =InpActive!H118 -> 0 | I162: =InpActive!I118 -> 0 | J162: =InpActive!J118 -> 0 | K162: =InpActive!K118 -> 0 | L162: =InpActive!L118 -> 0 | M162: =InpActive!M118 -> 0 | N162: =InpActive!N118 -> 0 | O162: =InpActive!O118 -> 0 | P162: =InpActive!P118 -> 0
E163: =InpActive!E119 -> TMS - Administrative charge for innovation fund - Nominal | F163: =InpActive!F119 -> 0 | G163: =InpActive!G119 -> £m | H163: =InpActive!H119 -> 0 | I163: =InpActive!I119 -> 0 | J163: =InpActive!J119 -> 0 | K163: =InpActive!K119 -> 0 | L163: =InpActive!L119 -> 0 | M163: =InpActive!M119 -> 0 | N163: =InpActive!N119 -> 0 | O163: =InpActive!O119 -> 0 | P163: =InpActive!P119 -> 0
E164: =InpActive!E120 -> WSH - Administrative charge for innovation fund - Nominal | F164: =InpActive!F120 -> 0 | G164: =InpActive!G120 -> £m | H164: =InpActive!H120 -> 0 | I164: =InpActive!I120 -> 0 | J164: =InpActive!J120 -> 0 | K164: =InpActive!K120 -> 0 | L164: =InpActive!L120 -> 0 | M164: =InpActive!M120 -> 0 | N164: =InpActive!N120 -> 0 | O164: =InpActive!O120 -> 0 | P164: =InpActive!P120 -> 0
E165: =InpActive!E121 -> WSX - Administrative charge for innovation fund - Nominal | F165: =InpActive!F121 -> 0 | G165: =InpActive!G121 -> £m | H165: =InpActive!H121 -> 0 | I165: =InpActive!I121 -> 0 | J165: =InpActive!J121 -> 0 | K165: =InpActive!K121 -> 0 | L165: =InpActive!L121 -> 0 | M165: =InpActive!M121 -> 0 | N165: =InpActive!N121 -> 0 | O165: =InpActive!O121 -> 0 | P165: =InpActive!P121 -> 0
E166: =InpActive!E122 -> YKY - Administrative charge for innovation fund - Nominal | F166: =InpActive!F122 -> 0 | G166: =InpActive!G122 -> £m | H166: =InpActive!H122 -> 0 | I166: =InpActive!I122 -> 0 | J166: =InpActive!J122 -> 0 | K166: =InpActive!K122 -> 0 | L166: =InpActive!L122 -> 0 | M166: =InpActive!M122 -> 0 | N166: =InpActive!N122 -> 0 | O166: =InpActive!O122 -> 0 | P166: =InpActive!P122 -> 0
E167: =InpActive!E123 -> AFW - Administrative charge for innovation fund - Nominal | F167: =InpActive!F123 -> 0 | G167: =InpActive!G123 -> £m | H167: =InpActive!H123 -> 0 | I167: =InpActive!I123 -> 0 | J167: =InpActive!J123 -> 0 | K167: =InpActive!K123 -> 0 | L167: =InpActive!L123 -> 0 | M167: =InpActive!M123 -> 0 | N167: =InpActive!N123 -> 0 | O167: =InpActive!O123 -> 0 | P167: =InpActive!P123 -> 0
E168: =InpActive!E124 -> BRL - Administrative charge for innovation fund - Nominal | F168: =InpActive!F124 -> 0 | G168: =InpActive!G124 -> £m | H168: =InpActive!H124 -> 0 | I168: =InpActive!I124 -> 0 | J168: =InpActive!J124 -> 0 | K168: =InpActive!K124 -> 0 | L168: =InpActive!L124 -> 0 | M168: =InpActive!M124 -> 0 | N168: =InpActive!N124 -> 0 | O168: =InpActive!O124 -> 0 | P168: =InpActive!P124 -> 0
E169: =InpActive!E125 -> PRT - Administrative charge for innovation fund - Nominal | F169: =InpActive!F125 -> 0 | G169: =InpActive!G125 -> £m | H169: =InpActive!H125 -> 0 | I169: =InpActive!I125 -> 0 | J169: =InpActive!J125 -> 0 | K169: =InpActive!K125 -> 0 | L169: =InpActive!L125 -> 0 | M169: =InpActive!M125 -> 0 | N169: =InpActive!N125 -> 0 | O169: =InpActive!O125 -> 0 | P169: =InpActive!P125 -> 0
E170: =InpActive!E126 -> SES - Administrative charge for innovation fund - Nominal | F170: =InpActive!F126 -> 0 | G170: =InpActive!G126 -> £m | H170: =InpActive!H126 -> 0 | I170: =InpActive!I126 -> 0 | J170: =InpActive!J126 -> 0 | K170: =InpActive!K126 -> 0 | L170: =InpActive!L126 -> 0 | M170: =InpActive!M126 -> 0 | N170: =InpActive!N126 -> 0 | O170: =InpActive!O126 -> 0 | P170: =InpActive!P126 -> 0
E171: =InpActive!E127 -> SEW - Administrative charge for innovation fund - Nominal | F171: =InpActive!F127 -> 0 | G171: =InpActive!G127 -> £m | H171: =InpActive!H127 -> 0 | I171: =InpActive!I127 -> 0 | J171: =InpActive!J127 -> 0 | K171: =InpActive!K127 -> 0 | L171: =InpActive!L127 -> 0 | M171: =InpActive!M127 -> 0 | N171: =InpActive!N127 -> 0 | O171: =InpActive!O127 -> 0 | P171: =InpActive!P127 -> 0
E172: =InpActive!E128 -> SSC - Administrative charge for innovation fund - Nominal | F172: =InpActive!F128 -> 0 | G172: =InpActive!G128 -> £m | H172: =InpActive!H128 -> 0 | I172: =InpActive!I128 -> 0 | J172: =InpActive!J128 -> 0 | K172: =InpActive!K128 -> 0 | L172: =InpActive!L128 -> 0 | M172: =InpActive!M128 -> 0 | N172: =InpActive!N128 -> 0 | O172: =InpActive!O128 -> 0 | P172: =InpActive!P128 -> 0
E173: [BLANK]
D175: Total Costs
E176: ANH - Total spend to date - Nominal | G176: £m | H176: =SUM(J176:P176) -> 0 | J176: =J136+J156 -> 0 | K176: =K136+K156 -> 0 | L176: 0 | M176: 0 | N176: 0 | O176: 0 | P176: 0
E177: HDD - Total spend to date - Nominal | G177: £m | H177: 0 | J177: =J137+J157 -> 0 | K177: 0 | L177: 0 | M177: 0 | N177: 0 | O177: 0 | P177: 0
E178: NES - Total spend to date - Nominal | G178: £m | H178: 0 | J178: =J138+J158 -> 0 | K178: 0 | L178: 0 | M178: 0 | N178: 0 | O178: 0 | P178: 0
E179: NWT - Total spend to date - Nominal | G179: £m | H179: 0 | J179: =J139+J159 -> 0 | K179: 0 | L179: 0 | M179: 0 | N179: 0 | O179: 0 | P179: 0
E180: SRN - Total spend to date - Nominal | G180: £m | H180: 0 | J180: =J140+J160 -> 0 | K180: 0 | L180: 0 | M180: 0 | N180: 0 | O180: 0 | P180: 0
E181: SVE - Total spend to date - Nominal | G181: £m | H181: 0 | J181: =J141+J161 -> 0 | K181: 0 | L181: 0 | M181: 0 | N181: 0 | O181: 0 | P181: 0
E182: SWB - Total spend to date - Nominal | G182: £m | H182: 0 | J182: =J142+J162 -> 0 | K182: 0 | L182: 0 | M182: 0 | N182: 0 | O182: 0 | P182: 0
E183: TMS - Total spend to date - Nominal | G183: £m | H183: 0 | J183: =J143+J163 -> 0 | K183: 0 | L183: 0 | M183: 0 | N183: 0 | O183: 0 | P183: 0
E184: WSH - Total spend to date - Nominal | G184: £m | H184: 0 | J184: =J144+J164 -> 0 | K184: 0 | L184: 0 | M184: 0 | N184: 0 | O184: 0 | P184: 0
E185: WSX - Total spend to date - Nominal | G185: £m | H185: 0 | J185: =J145+J165 -> 0 | K185: 0 | L185: 0 | M185: 0 | N185: 0 | O185: 0 | P185: 0
E186: YKY - Total spend to date - Nominal | G186: £m | H186: 0 | J186: =J146+J166 -> 0 | K186: 0 | L186: 0 | M186: 0 | N186: 0 | O186: 0 | P186: 0
E187: AFW - Total spend to date - Nominal | G187: £m | H187: 0 | J187: =J147+J167 -> 0 | K187: 0 | L187: 0 | M187: 0 | N187: 0 | O187: 0 | P187: 0
E188: BRL - Total spend to date - Nominal | G188: £m | H188: 0 | J188: =J148+J168 -> 0 | K188: 0 | L188: 0 | M188: 0 | N188: 0 | O188: 0 | P188: 0
E189: PRT - Total spend to date - Nominal | G189: £m | H189: 0 | J189: =J149+J169 -> 0 | K189: 0 | L189: 0 | M189: 0 | N189: 0 | O189: 0 | P189: 0
E190: SES - Total spend to date - Nominal | G190: £m | H190: 0 | J190: =J150+J170 -> 0 | K190: 0 | L190: 0 | M190: 0 | N190: 0 | O190: 0 | P190: 0
E191: SEW - Total spend to date - Nominal | G191: £m | H191: 0 | J191: =J151+J171 -> 0 | K191: 0 | L191: 0 | M191: 0 | N191: 0 | O191: 0 | P191: 0
E192: SSC - Total spend to date - Nominal | G192: £m | H192: 0 | J192: =J152+J172 -> 0 | K192: 0 | L192: 0 | M192: 0 | N192: 0 | O192: 0 | P192: 0
E193: NAV - Total spend to date - Nominal | G193: £m | H193: 0 | J193: =J153+J173 -> 0 | K193: =K153+K173 -> 0 | L193: 0 | M193: 0 | N193: 0 | O193: 0 | P193: 0
E194: Total spend to date - Nominal | G194: £m | H194: =SUM(J194:P194) -> 0 | J194: =SUM(J176:J193) -> 0 | K194: =SUM(K176:K193) -> 0 | L194: =SUM(L176:L193) -> 0 | M194: =SUM(M176:M193) -> 0 | N194: =SUM(N176:N193) -> 0 | O194: =SUM(O176:O193) -> 0 | P194: =SUM(P176:P193) -> 0
D196: Allowed Future expenditure
E197: =InpActive!E131 -> ANH - Allowed Future expenditure on innovation projects - Nominal | F197: =InpActive!F131 -> 0 | G197: =InpActive!G131 -> £m | H197: =InpActive!H131 -> 0 | I197: =InpActive!I131 -> 0 | J197: =InpActive!J131 -> 0 | K197: =InpActive!K131 -> 0 | L197: =InpActive!L131 -> 0 | M197: =InpActive!M131 -> 0 | N197: =InpActive!N131 -> 0 | O197: =InpActive!O131 -> 0 | P197: =InpActive!P131 -> 0
E198: =InpActive!E132 -> HDD - Allowed Future expenditure on innovation projects - Nominal | F198: =InpActive!F132 -> 0 | G198: =InpActive!G132 -> £m | H198: =InpActive!H132 -> 0 | I198: =InpActive!I132 -> 0 | J198: =InpActive!J132 -> 0 | K198: =InpActive!K132 -> 0 | L198: =InpActive!L132 -> 0 | M198: =InpActive!M132 -> 0 | N198: =InpActive!N132 -> 0 | O198: =InpActive!O132 -> 0 | P198: =InpActive!P132 -> 0
E199: =InpActive!E133 -> NES - Allowed Future expenditure on innovation projects - Nominal | F199: =InpActive!F133 -> 0 | G199: =InpActive!G133 -> £m | H199: =InpActive!H133 -> 0 | I199: =InpActive!I133 -> 0 | J199: =InpActive!J133 -> 0 | K199: =InpActive!K133 -> 0 | L199: =InpActive!L133 -> 0 | M199: =InpActive!M133 -> 0 | N199: =InpActive!N133 -> 0 | O199: =InpActive!O133 -> 0 | P199: =InpActive!P133 -> 0
E200: =InpActive!E134 -> NWT - Allowed Future expenditure on innovation projects - Nominal | F200: =InpActive!F134 -> 0 | G200: =InpActive!G134 -> £m | H200: =InpActive!H134 -> 0 | I200: =InpActive!I134 -> 0 | J200: =InpActive!J134 -> 0 | K200: =InpActive!K134 -> 0 | L200: =InpActive!L134 -> 0 | M200: =InpActive!M134 -> 0 | N200: =InpActive!N134 -> 0 | O200: =InpActive!O134 -> 0 | P200: =InpActive!P134 -> 0
E201: =InpActive!E135 -> SRN - Allowed Future expenditure on innovation projects - Nominal | F201: =InpActive!F135 -> 0 | G201: =InpActive!G135 -> £m | H201: =InpActive!H135 -> 0 | I201: =InpActive!I135 -> 0 | J201: =InpActive!J135 -> 0 | K201: =InpActive!K135 -> 0 | L201: =InpActive!L135 -> 0 | M201: =InpActive!M135 -> 0 | N201: =InpActive!N135 -> 0 | O201: =InpActive!O135 -> 0 | P201: =InpActive!P135 -> 0
E202: =InpActive!E136 -> SVE - Allowed Future expenditure on innovation projects - Nominal | F202: =InpActive!F136 -> 0 | G202: =InpActive!G136 -> £m | H202: =InpActive!H136 -> 0 | I202: =InpActive!I136 -> 0 | J202: =InpActive!J136 -> 0 | K202: =InpActive!K136 -> 0 | L202: =InpActive!L136 -> 0 | M202: =InpActive!M136 -> 0 | N202: =InpActive!N136 -> 0 | O202: =InpActive!O136 -> 0 | P202: =InpActive!P136 -> 0
E203: =InpActive!E137 -> SWB - Allowed Future expenditure on innovation projects - Nominal | F203: =InpActive!F137 -> 0 | G203: =InpActive!G137 -> £m | H203: =InpActive!H137 -> 0 | I203: =InpActive!I137 -> 0 | J203: =InpActive!J137 -> 0 | K203: =InpActive!K137 -> 0 | L203: =InpActive!L137 -> 0 | M203: =InpActive!M137 -> 0 | N203: =InpActive!N137 -> 0 | O203: =InpActive!O137 -> 0 | P203: =InpActive!P137 -> 0
E204: =InpActive!E138 -> TMS - Allowed Future expenditure on innovation projects - Nominal | F204: =InpActive!F138 -> 0 | G204: =InpActive!G138 -> £m | H204: =InpActive!H138 -> 0 | I204: =InpActive!I138 -> 0 | J204: =InpActive!J138 -> 0 | K204: =InpActive!K138 -> 0 | L204: =InpActive!L138 -> 0 | M204: =InpActive!M138 -> 0 | N204: =InpActive!N138 -> 0 | O204: =InpActive!O138 -> 0 | P204: =InpActive!P138 -> 0
E205: =InpActive!E139 -> WSH - Allowed Future expenditure on innovation projects - Nominal | F205: =InpActive!F139 -> 0 | G205: =InpActive!G139 -> £m | H205: =InpActive!H139 -> 0 | I205: =InpActive!I139 -> 0 | J205: =InpActive!J139 -> 0 | K205: =InpActive!K139 -> 0 | L205: =InpActive!L139 -> 0 | M205: =InpActive!M139 -> 0 | N205: =InpActive!N139 -> 0 | O205: =InpActive!O139 -> 0 | P205: =InpActive!P139 -> 0
E206: =InpActive!E140 -> WSX - Allowed Future expenditure on innovation projects - Nominal | F206: =InpActive!F140 -> 0 | G206: =InpActive!G140 -> £m | H206: =InpActive!H140 -> 0 | I206: =InpActive!I140 -> 0 | J206: =InpActive!J140 -> 0 | K206: =InpActive!K140 -> 0 | L206: =InpActive!L140 -> 0 | M206: =InpActive!M140 -> 0 | N206: =InpActive!N140 -> 0 | O206: =InpActive!O140 -> 0 | P206: =InpActive!P140 -> 0
E207: =InpActive!E141 -> YKY - Allowed Future expenditure on innovation projects - Nominal | F207: =InpActive!F141 -> 0 | G207: =InpActive!G141 -> £m | H207: =InpActive!H141 -> 0 | I207: =InpActive!I141 -> 0 | J207: =InpActive!J141 -> 0 | K207: =InpActive!K141 -> 0 | L207: =InpActive!L141 -> 0 | M207: =InpActive!M141 -> 0 | N207: =InpActive!N141 -> 0 | O207: =InpActive!O141 -> 0 | P207: =InpActive!P141 -> 0
E208: =InpActive!E142 -> AFW - Allowed Future expenditure on innovation projects - Nominal | F208: =InpActive!F142 -> 0 | G208: =InpActive!G142 -> £m | H208: =InpActive!H142 -> 0 | I208: =InpActive!I142 -> 0 | J208: =InpActive!J142 -> 0 | K208: =InpActive!K142 -> 0 | L208: =InpActive!L142 -> 0 | M208: =InpActive!M142 -> 0 | N208: =InpActive!N142 -> 0 | O208: =InpActive!O142 -> 0 | P208: =InpActive!P142 -> 0
E209: =InpActive!E143 -> BRL - Allowed Future expenditure on innovation projects - Nominal | F209: =InpActive!F143 -> 0 | G209: =InpActive!G143 -> £m | H209: =InpActive!H143 -> 0 | I209: =InpActive!I143 -> 0 | J209: =InpActive!J143 -> 0 | K209: =InpActive!K143 -> 0 | L209: =InpActive!L143 -> 0 | M209: =InpActive!M143 -> 0 | N209: =InpActive!N143 -> 0 | O209: =InpActive!O143 -> 0 | P209: =InpActive!P143 -> 0
E210: =InpActive!E144 -> PRT - Allowed Future expenditure on innovation projects - Nominal | F210: =InpActive!F144 -> 0 | G210: =InpActive!G144 -> £m | H210: =InpActive!H144 -> 0 | I210: =InpActive!I144 -> 0 | J210: =InpActive!J144 -> 0 | K210: =InpActive!K144 -> 0 | L210: =InpActive!L144 -> 0 | M210: =InpActive!M144 -> 0 | N210: =InpActive!N144 -> 0 | O210: =InpActive!O144 -> 0 | P210: =InpActive!P144 -> 0
E211: =InpActive!E145 -> SES - Allowed Future expenditure on innovation projects - Nominal | F211: =InpActive!F145 -> 0 | G211: =InpActive!G145 -> £m | H211: =InpActive!H145 -> 0 | I211: =InpActive!I145 -> 0 | J211: =InpActive!J145 -> 0 | K211: =InpActive!K145 -> 0 | L211: =InpActive!L145 -> 0 | M211: =InpActive!M145 -> 0 | N211: =InpActive!N145 -> 0 | O211: =InpActive!O145 -> 0 | P211: =InpActive!P145 -> 0
E212: =InpActive!E146 -> SEW - Allowed Future expenditure on innovation projects - Nominal | F212: =InpActive!F146 -> 0 | G212: =InpActive!G146 -> £m | H212: =InpActive!H146 -> 0 | I212: =InpActive!I146 -> 0 | J212: =InpActive!J146 -> 0 | K212: =InpActive!K146 -> 0 | L212: =InpActive!L146 -> 0 | M212: =InpActive!M146 -> 0 | N212: =InpActive!N146 -> 0 | O212: =InpActive!O146 -> 0 | P212: =InpActive!P146 -> 0
E213: =InpActive!E147 -> SSC - Allowed Future expenditure on innovation projects - Nominal | F213: =InpActive!F147 -> 0 | G213: =InpActive!G147 -> £m | H213: =InpActive!H147 -> 0 | I213: =InpActive!I147 -> 0 | J213: =InpActive!J147 -> 0 | K213: =InpActive!K147 -> 0 | L213: =InpActive!L147 -> 0 | M213: =InpActive!M147 -> 0 | N213: =InpActive!N147 -> 0 | O213: =InpActive!O147 -> 0 | P213: =InpActive!P147 -> 0
... 167 more rows

Sheet Outputs-->

Sheet Outputs
A1: =RIGHT(CELL("filename", $A$1), LEN(CELL("filename", $A$1)) - SEARCH("]", CELL("filename", $A$1))) -> Outputs
E2: =Time!E$22 -> Model Period BEG | J2: =Time!J$22 -> 2019-04-01 | K2: =Time!K$22 -> 2020-04-01 | L2: =Time!L$22 -> 2021-04-01 | M2: =Time!M$22 -> 2022-04-01 | N2: =Time!N$22 -> 2023-04-01 | O2: =Time!O$22 -> 2024-04-01 | P2: =Time!P$22 -> 2025-04-01
E3: =Time!E$23 -> Model Period END | F3: =Check!F$8 -> 0 | G3: Error chks | J3: =Time!J$23 -> 2020-03-31 | K3: =Time!K$23 -> 2021-03-31 | L3: =Time!L$23 -> 2022-03-31 | M3: =Time!M$23 -> 2023-03-31 | N3: =Time!N$23 -> 2024-03-31 | O3: =Time!O$23 -> 2025-03-31 | P3: =Time!P$23 -> 2026-03-31
E4: =Time!E$59 -> Pre Forecast vs Forecast | J4: =Time!J$59 -> Pre Fcst | K4: =Time!K$59 -> Forecast | L4: =Time!L$59 -> Forecast | M4: =Time!M$59 -> Forecast | N4: =Time!N$59 -> Forecast | O4: =Time!O$59 -> Forecast | P4: =Time!P$59 -> Post-Fcst
E5: =Time!E$101 -> Financial Year Ending | J5: =Time!J$101 -> 2020 | K5: =Time!K$101 -> 2021 | L5: =Time!L$101 -> 2022 | M5: =Time!M$101 -> 2023 | N5: =Time!N$101 -> 2024 | O5: =Time!O$101 -> 2025 | P5: =Time!P$101 -> 2026
E6: =Time!E$11 -> Model column counter | F6: Constant | G6: Unit | H6: Total | J6: =Time!J$11 -> 1 | K6: =Time!K$11 -> 2 | L6: =Time!L$11 -> 3 | M6: =Time!M$11 -> 4 | N6: =Time!N$11 -> 5 | O6: =Time!O$11 -> 6 | P6: =Time!P$11 -> 7
E10: ='Innovation funding return'!E377 -> ANH - Total to be redistributed - Real | F10: ='Innovation funding return'!H377 -> 20.98678418 | G10: ='Innovation funding return'!G377 -> £m
E11: ='Innovation funding return'!E378 -> HDD - Total to be redistributed - Real | F11: ='Innovation funding return'!H378 -> 0.454895641 | G11: ='Innovation funding return'!G378 -> £m
E12: ='Innovation funding return'!E379 -> NES - Total to be redistributed - Real | F12: ='Innovation funding return'!H379 -> 11.785105 | G12: ='Innovation funding return'!G379 -> £m
E13: ='Innovation funding return'!E380 -> NWT - Total to be redistributed - Real | F13: ='Innovation funding return'!H380 -> 29.37006115 | G13: ='Innovation funding return'!G380 -> £m
E14: ='Innovation funding return'!E381 -> SRN - Total to be redistributed - Real | F14: ='Innovation funding return'!H381 -> 13.29778674 | G14: ='Innovation funding return'!G381 -> £m
E15: ='Innovation funding return'!E382 -> SVE - Total to be redistributed - Real | F15: ='Innovation funding return'!H382 -> 28.3821074 | G15: ='Innovation funding return'!G382 -> £m
E16: ='Innovation funding return'!E383 -> SWB - Total to be redistributed - Real | F16: ='Innovation funding return'!H383 -> 8.82064115 | G16: ='Innovation funding return'!G383 -> £m
E17: ='Innovation funding return'!E384 -> TMS - Total to be redistributed - Real | F17: ='Innovation funding return'!H384 -> 34.32930907 | G17: ='Innovation funding return'!G384 -> £m
E18: ='Innovation funding return'!E385 -> WSH - Total to be redistributed - Real | F18: ='Innovation funding return'!H385 -> 12.35773469 | G18: ='Innovation funding return'!G385 -> £m
E19: ='Innovation funding return'!E386 -> WSX - Total to be redistributed - Real | F19: ='Innovation funding return'!H386 -> 8.260459208 | G19: ='Innovation funding return'!G386 -> £m
E20: ='Innovation funding return'!E387 -> YKY - Total to be redistributed - Real | F20: ='Innovation funding return'!H387 -> 17.59261306 | G20: ='Innovation funding return'!G387 -> £m
E21: ='Innovation funding return'!E388 -> AFW - Total to be redistributed - Real | F21: ='Innovation funding return'!H388 -> 4.843234773 | G21: ='Innovation funding return'!G388 -> £m
E22: ='Innovation funding return'!E389 -> BRL - Total to be redistributed - Real | F22: ='Innovation funding return'!H389 -> 1.891226929 | G22: ='Innovation funding return'!G389 -> £m
E23: ='Innovation funding return'!E390 -> PRT - Total to be redistributed - Real | F23: ='Innovation funding return'!H390 -> 0.6911880996 | G23: ='Innovation funding return'!G390 -> £m
E24: ='Innovation funding return'!E391 -> SES - Total to be redistributed - Real | F24: ='Innovation funding return'!H391 -> 0.9840540389 | G24: ='Innovation funding return'!G391 -> £m
E25: ='Innovation funding return'!E392 -> SEW - Total to be redistributed - Real | F25: ='Innovation funding return'!H392 -> 3.951513618 | G25: ='Innovation funding return'!G392 -> £m
E26: ='Innovation funding return'!E393 -> SSC - Total to be redistributed - Real | F26: ='Innovation funding return'!H393 -> 2.042960997 | G26: ='Innovation funding return'!G393 -> £m
E28: ='Innovation funding return'!E394 -> Industry - Total to be redistributed - Real | F28: ='Innovation funding return'!H394 -> 200.0416758 | G28: ='Innovation funding return'!G394 -> £m
A30: END OF SHEET

Sheet Integrity checks-->

Sheet Check
A1: =RIGHT(CELL("filename", $A$1), LEN(CELL("filename", $A$1)) - SEARCH("]", CELL("filename", $A$1))) -> Check
E2: =Time!E$22 -> Model Period BEG | J2: =Time!J$22 -> 2019-04-01 | K2: =Time!K$22 -> 2020-04-01 | L2: =Time!L$22 -> 2021-04-01 | M2: =Time!M$22 -> 2022-04-01 | N2: =Time!N$22 -> 2023-04-01 | O2: =Time!O$22 -> 2024-04-01 | P2: =Time!P$22 -> 2025-04-01
E3: =Time!E$23 -> Model Period END | F3: =Check!F$8 -> 0 | G3: Error chks | J3: =Time!J$23 -> 2020-03-31 | K3: =Time!K$23 -> 2021-03-31 | L3: =Time!L$23 -> 2022-03-31 | M3: =Time!M$23 -> 2023-03-31 | N3: =Time!N$23 -> 2024-03-31 | O3: =Time!O$23 -> 2025-03-31 | P3: =Time!P$23 -> 2026-03-31
E4: =Time!E$59 -> Pre Forecast vs Forecast | J4: =Time!J$59 -> Pre Fcst | K4: =Time!K$59 -> Forecast | L4: =Time!L$59 -> Forecast | M4: =Time!M$59 -> Forecast | N4: =Time!N$59 -> Forecast | O4: =Time!O$59 -> Forecast | P4: =Time!P$59 -> Post-Fcst
E5: =Time!E$101 -> Financial Year Ending | J5: =Time!J$101 -> 2020 | K5: =Time!K$101 -> 2021 | L5: =Time!L$101 -> 2022 | M5: =Time!M$101 -> 2023 | N5: =Time!N$101 -> 2024 | O5: =Time!O$101 -> 2025 | P5: =Time!P$101 -> 2026
E6: =Time!E$11 -> Model column counter | F6: Constant | G6: Unit | H6: Total | J6: =Time!J$11 -> 1 | K6: =Time!K$11 -> 2 | L6: =Time!L$11 -> 3 | M6: =Time!M$11 -> 4 | N6: =Time!N$11 -> 5 | O6: =Time!O$11 -> 6 | P6: =Time!P$11 -> 7
E8: Total error checks | F8: =SUM(F10:F16) -> 0 | G8: check
A10: [Do not delete]
E12: ='Innovation funding return'!E297 -> Negative funding check | F12: ='Innovation funding return'!F297 -> 0 | G12: ='Innovation funding return'!G297 -> check
E13: ='Innovation funding return'!E90 -> Allocated funding proportion check | F13: ='Innovation funding return'!F90 -> 0 | G13: ='Innovation funding return'!G90 -> check
E14: =InpActive!E89 -> Total awarded check | F14: =InpActive!F89 -> 0 | G14: =InpActive!G89 -> check
A16: [Do not delete]
A18: END OF SHEET
